Workbook

Sheet BP
B1: EBSERH - EMPRESA BRASILEIRA DE SERVIÇOS HOSPITALARES
B2: Balanço Patrimonial Consolidado | G2: 30 de setembro de 2021
B3: Em reais
B4: ATIVO | F4: NOTA | G4: 30.09.2021 | H4: 31.12.2020
B5: CIRCULANTE | F5: 1.1 | G5: 1770671925 | H5: 1137165231
C6: Caixa e Equivalentes de Caixa | F6: 1.1.1 | G6: 900325542.5 | H6: 745556301.5
C7: Valores a Curto Prazo - SUS | F7: 1.1.2 | G7: 3328926.21 | H7: 35011916.13
C8: Subvenção de Custeio SUS a Receber | F8: 1.1.3 | G8: 351050840.9 | H8: 0
C9: Adiantamentos e Créditos a Receber | F9: 1.1.4 | G9: 154662242.8 | H9: 17233041.32
C10: Estoques | F10: 1.1.5 | G10: 361304372.6 | H10: 339363972.5
C11: Valores em Liquidação | G11: 0 | H11: 0
B12: NÃO CIRCULANTE | F12: 1.2 | G12: 674948865.9 | H12: 557949458.6
C13: Valores a Longo Prazo - SUS | F13: 1.2.1 | G13: 10522321.88 | H13: 0
C14: Depósitos Judiciais | F14: 1.2.2 | G14: 18073630.29 | H14: 14350674.62
C15: Outras Despesas Antecipadas | F15: 1.2.2 | G15: Fora do Siafi | H15: 0
C16: Imobilizado | F16: 1.2.3 | G16: 584501976.2 | H16: 483557905.1
D17: Bens Móveis | F17: 1.2.3.1 | G17: 652381113.2 | H17: 529446242.2
E18: Depreciação Bens Móveis | F18: 1.2.3.4 | G18: -119688117.2 | H18: -93914863.65
E19: Redução a Valor Recup. De Imobilizado | F19: 1.2.4 | G19: -6165879.64 | H19: -6165879.64
D20: Bens Imóveis | F20: 1.2.3.2 | G20: 58288496.67 | H20: 54348047.87
E21: Depreciação Bens Imóveis | F21: 1.2.3.4 | G21: -313636.85 | H21: -155641.62
C22: Intangível | F22: 1.2.5 | G22: 61850937.49 | H22: 60040878.82
D23: Direito de uso de Imóvel | F23: 1.2.3.3 | G23: 22870419.24 | H23: 17595220.85
D24: Softwares | F24: 1.2.5 | G24: 54570030.46 | H24: 53609751.03
D25: Amortização Bens Intangíveis | F25: 1.2.5 | G25: -12908995.8 | H25: -8483576.65
D26: Redução a Valor Recup. De Intangível | F26: 1.2.5 | G26: -2680516.41 | H26: -2680516.41
B27: TOTAL DO ATIVO | G27: 2445620791 | H27: 1695114690
B28: As notas explicativas da Administração são parte integrante das demonstrações contábeis consolidadas
B30: EBSERH - EMPRESA BRASILEIRA DE SERVIÇOS HOSPITALARES
B31: Balanço Patrimonial Consolidado | G31: 30 de setembro de 2021
B32: Em reais
B33: PASSIVO | F33: NOTA | G33: 30.09.2021 | H33: 31.12.2020
B34: CIRCULANTE | F34: 2.1 | G34: 2170691178 | H34: 1380827646
C35: Obrigações Trabalhistas a Pagar | F35: 2.1.1 | G35: 1052528677 | H35: 797144112.3
C36: Fornecedores e Contas a Pagar a Curto Prazo | F36: 2.1.2 | G36: 98457100.67 | H36: 73206580.73
C37: Retenções de Impostos, Contribuições | F37: 2.1.3 | G37: 14993091.77 | H37: 3198014.07
C38: Obrigações Transitórias a Curto Prazo | F38: 2.1.4 | G38: 24675421.11 | H38: 41167984.56
C39: Subvenção a Realizar | F39: 2.1.5 | G39: 980036887.7 | H39: 466110954
B40: NÃO CIRCULANTE | G40: 228955333.9 | H40: 259788383.7
C41: Contratos de Arrendamento a Pagar | F41: 2.2 | G41: 116105661 | H41: 139811358.8
C42: Contingência para Indenizações Trabalhistas | F42: 2.3 | G42: 88112044.24 | H42: 93987246.77
C43: Contingência para Indenizações Cíveis | F43: 2.3 | G43: 24737628.68 | H43: 25989778.1
C44: Adiantamento Para Futuro Aumento de Capital - AFAC | F44: 2.4 | G44: 0 | H44: 0
B45: PATRIMÔNIO LÍQUIDO | F45: 2.4 | G45: 45974279.02 | H45: 54498660.64
C46: Capital Social Realizado | F46: 2.4.1 | G46: 381384237.8 | H46: 381384237.8
C47: Adiantamento Para Futuro Aumento de Capital - AFAC | F47: 2.4.2 | G47: 289726705.5 | H47: 202658776.9
C48: Ajustes de Avaliação Patrimonial de Ativos | F48: 2.4.3 | G48: 0 | H48: 383667.75
C49: Resultados Acumulados | F49: 2.4.4 | G49: -625136664.3 | H49: -529928021.8
D50: Prejuizos Acumulados de Exer. Anteriores | F50: 2.4.4 | G50: -529544354 | H50: -512557193.9
D51: Ajustes de Exercícios Anteriores | F51: 2.4.4 | G51: -2552006.2 | H51: -3651055.2
D52: Resultado do Exercício | F52: 2.4.4 | G52: -93040304.05 | H52: -13719772.7
B53: TOTAL DO PASSIVO | G53: 2445620791 | H53: 1695114690
B54: As notas explicativas da Administração são parte integrante das Demonstrações Contábeis Consolidadas
G55: =G53-G27 -> 0 | H55: =H53-H27 -> 0

Sheet DR
B1: EBSERH - EMPRESA BRASILEIRA DE SERVIÇOS HOSPITALARES
B2: Demonstração do Resultado | I2: 30 de setembro de 2021
B3: Em reais
B4: DESCRIÇÃO | E4: Nota | F4: 01.01.20201 a 31.03.2021 | G4: 01.04.2021 a 30.06.2021 | H4: 01.07.2021 a 30.09.2021 | I4: 01.01.2021 a 30.09.2021 | J4: 01.04.2020 a 30.06.2020 | K4: 01.07.2020 a 30.09.2020 | L4: 01.01.2020 a 30.09.2020
B5: Receita Bruta | E5: 3.1 | F5: 34024361.84 | G5: 65182328.56 | H5: 35645855.32 | I5: 99206690.4 | J5: 25813408.99 | K5: 37318818.14 | L5: 79751430.97
C6: Receita com Serviços | E6: 3.1.1 | F6: 34024361.84 | G6: 65182328.56 | H6: 35645855.32 | I6: 99206690.4 | J6: 25813408.99 | K6: 37318818.14 | L6: 79751430.97
D7: Receita de Serviços e Exploração | E7: 3.1.1 | F7: 34024361.84 | G7: 65182328.56 | H7: 35645855.32 | I7: 99206690.4 | J7: 25813408.99 | K7: 37318818.14 | L7: 79751430.97
B8: Despesas Operacionais | E8: 3.3 | F8: -1962363356 | G8: -4251608648 | H8: -2095766638 | I8: -6213972003 | J8: -1897374074 | K8: -1928931867 | L8: -5375648145
C9: Despesa com Pessoal, Encargos e Benefícios | E9: 3.3.1 | F9: -1396877838 | G9: -2952440681 | H9: -1438233155 | I9: -4349318518 | J9: -1481868148 | K9: -1347153575 | L9: -3923126340
D10: Remuneração a Pessoal | E10: 3.3.2 | F10: -1001744708 | G10: -2101272960 | H10: -1016216434 | I10: -3103017668 | J10: -996043795.8 | K10: -959955219.7 | L10: -2767634421
D11: Encargos Patronais | E11: 3.3.3 | F11: -310158462.4 | G11: -662582985 | H11: -324164623.1 | I11: -972741447.4 | J11: -376544192.8 | K11: -305486346.6 | L11: -941458327.5
D12: Benefícios a Pessoal | E12: 3.3.4 | F12: -81110249.3 | G12: -171506742.6 | H12: -86625080.89 | I12: -252616991.9 | J12: -107595900.3 | K12: -78754626.23 | L12: -207315041.2
D13: Outras Despesas com Pessoal e Encargos | E13: 3.3.5 | F13: -3864418.02 | G13: -17077992.77 | H13: -11227016.96 | I13: -20942410.79 | J13: -1684258.73 | K13: -2957382.48 | L13: -6718550.21
C14: Despesa com Uso de Bens e Serviços | F14: -554372495.7 | G14: -1272590330 | H14: -644650380 | I14: -1826962826 | J14: -406687550.3 | K14: -526196453.1 | L14: -1371445314
D15: Uso de Material de Consumo | E15: 3.3.6 | F15: -258511732.8 | G15: -614353963.5 | H15: -307119390.3 | I15: -872865696.3 | J15: -184777350.8 | K15: -250205922.8 | L15: -598972579.7
D16: Serviços Tomados | E16: 3.3.7 | F16: -295860762.9 | G16: -658236366.3 | H16: -337530989.7 | I16: -954097129.3 | J16: -221910199.6 | K16: -275990530.3 | L16: -772472734.4
C17: Despesa com Bens Móveis, Imóveis e Intangíveis | F17: -10021347.47 | G17: -21964482.94 | H17: -11092081.21 | I17: -31985830.41 | J17: -8578976.99 | K17: -10053631.82 | L17: -25636644.91
D18: Depreciação, Amortização e Impairment | E18: 3.3.8 | F18: -9713566.78 | G18: -21255764.06 | H18: -10758607.03 | I18: -30969330.84 | J18: -8574033 | K18: -8129832.38 | L18: -23619532.38
D19: Perdas Involuntárias e Desfazimentos | E19: 3.3.9 | F19: -307780.69 | G19: -708718.88 | H19: -333474.18 | I19: -1016499.57 | J19: -4943.99 | K19: -1923799.44 | L19: -2017112.53
C20: Contingência para Riscos Fiscais | E20: 3.3.10 | F20: 0 | G20: -1880677.33 | H20: 0 | I20: -1880677.33 | J20: 0 | K20: -44132479.47 | L20: -45540778.29
D21: Contigência para Riscos Fiscais Trabalhistas | F21: 0 | G21: -1880677.33 | H21: 0 | I21: -1880677.33 | J21: 0 | K21: -26421621.65 | L21: -27829920.47
D22: Contigência para Riscos Fiscais Cíveis | F22: 0 | G22: 0 | H22: 0 | I22: 0 | J22: 0 | K22: -17710857.82 | L22: -17710857.82
C23: Despesas Tributárias | E23: 3.3.11 | F23: -499197.52 | G23: -457006.02 | H23: -148810.12 | I23: -956203.54 | J23: -239399.02 | K23: -148108.81 | L23: -656742.87
D24: Impostos, Taxas e Contribuições | F24: -499197.52 | G24: -457006.02 | H24: -148810.12 | I24: -956203.54 | J24: -239399.02 | K24: -148108.81 | L24: -656742.87
C25: Outras Despesas Operacionais | E25: 3.3.12 | F25: -592477.64 | G25: -2275470.76 | H25: -1642211.23 | I25: -2867948.4 | J25: 0 | K25: -1247618.86 | L25: -9242325.1
B26: Resultado Antes das Rec./Desp. Financeiras | F26: -1928338994 | G26: -4186426319 | H26: -2060120782 | I26: -6114765313 | J26: -1871560665 | K26: -1891613049 | L26: -5295896714
B27: Resultados Financeiros | F27: 79617.35 | G27: 663185.45 | H27: 254910.93 | I27: 742802.8 | J27: 2240113.38 | K27: -586329.15 | L27: 2592304.3
D28: Receitas Financeiras | E28: 3.3.13 | F28: 160348.31 | G28: 890081.28 | H28: 393401.36 | I28: 1050429.59 | J28: 2804068.22 | K28: -417444.98 | L28: 3617046
D29: Despesas Financeiras | E29: 3.3.14 | F29: -80730.96 | G29: -226895.83 | H29: -138490.43 | I29: -307626.79 | J29: -563954.84 | K29: -168884.17 | L29: -1024741.7
B30: Resultado antes da Subvenção do Tesouro Nacional | E30: 3.3.15 | F30: -1928259377 | G30: -4185763134 | H30: -2059865871 | I30: -6114022510 | J30: -1869320552 | K30: -1892199378 | L30: -5293304410
B31: Subvenção do Tesouro Nacional | E31: 3.3.16 | F31: 1863629568 | G31: 4157352638 | H31: 2044016578 | I31: 6020982206 | J31: 1867475508 | K31: 1889093786 | L31: 5279840596
D32: Subvenção do Tesouro Nacional | E32: 3.3.16 | F32: 1466094843 | G32: 3307700067 | H32: 1619240917 | I32: 4773794910 | J32: 1484736782 | K32: 1466368151 | L32: 4106392555
D33: Subvenção de Custeio SUS | E33: 3.3.16 | F33: 397534725.8 | G33: 849652570.5 | H33: 424775660.8 | I33: 1247187296 | J33: 382738725.9 | K33: 422725634.5 | L33: 1173448041
B34: Resultado antes da Cont. Social Sobre o Lúcro Líquido | E34: 3.3.17 | F34: -64629808.39 | G34: -28410495.66 | H34: -15849293.85 | I34: -93040304.05 | J34: -1845043.2 | K34: -3105592.28 | L34: -13463813.49
D35: Provisão Contribuição Social | G35: 0 | H35: 0 | I35: 0 | J35: 0 | L35: 0
B36: Resultado antes do Imposto de Renda | F36: -64629808.39 | G36: -28410495.66 | H36: -15849293.85 | I36: -93040304.05 | J36: -1845043.2 | K36: -3105592.28 | L36: -13463813.49
D37: Provisão para Imposto de Renda | G37: 0 | H37: 0 | I37: 0 | J37: 0 | L37: 0
B38: Resultado do Exercício | E38: 3.3.18 | F38: -64629808.39 | G38: -28410495.66 | H38: -15849293.85 | I38: -93040304.05 | J38: -1845043.2 | K38: -3105592.28 | L38: -13463813.49
B39: As notas explicativas da Administração são parte integrante das Demonstrações Contábeis Consolidadas
O43: Despesa indedutível da Base IR | Q43: =0.15 -> 0.15 | R43: =Q43*P44 ->  | S43: IR Sobre a Base
O44: Base de IR | P44: =#REF!-P43 ->  | Q44: 0.1 | R44: =Q44*P46 ->  | S44: Adicional IR
O45: Percentual Isento | P45: 60000 | Q45: 0.09 | R45: =P44*Q45 ->  | S45: CSLL a Recolher
P46: =P44-P45 ->  | R46: =R43+R44 ->  | S46: Total de IR Apurado
I47: Prejuízo Acumulado | Q47: 0.3 | R47: =R46*Q47 ->  | S47: Compensação de Prejuízo Fiscal Acumulado
I48: 30% Base de Calculo
R49: =R46-R47 ->  | S49: IR a Recolher
R50: =R45 ->  | S50: CSLL a Recolher
R51: =R49+R50 ->  | S51: Total

Sheet DFC
A1: Organizador de DFC | I1: EBSERH - EMPRESA BRASILEIRA DE SERVIÇOS HOSPITALARES
A2: Grupo | B2: Conta Contábil | C2: Valor Fechamento | D2: Valor anterior | E2: Análise | F2: Regra | G2: Δ Variação | I2: Demonstração do Fluxo de Caixa - Método Indireto | K2: 30 de setembro de 2021
I3: Em reais
A4: Passivo-C | B4: Resultado do Exercício | C4: =IFERROR(IFERROR(IFERROR(INDEX(BP!B:H,MATCH(B4,BP!C:C,0),6),INDEX(BP!B:H,MATCH(B4,BP!D:D,0),6)),INDEX(BP!B:H,MATCH(B4,BP!E:E,0),6)),"") -> -93040304.05 | D4: =IFERROR(IFERROR(IFERROR(INDEX(BP!B:H,MATCH(B4,BP!C:C,0),7),INDEX(BP!B:H,MATCH(B4,BP!D:D,0),7)),INDEX(BP!B:H,MATCH(B4,BP!E:E,0),7)),"") -> -13719772.7 | E4: =IF(A4="","",IF(C4>D4,"Aumento em","Redução em")) -> Redução em | F4: =IF(A4="","",IF(AND(LEFT(A4,5)="Ativo",C4>D4),"(-)",IF(AND(LEFT(A4,5)="Ativo",C4<D4),"(+)",IF(AND(LEFT(A4,7)="Passivo",C4>D4),"(+)",IF(AND(LEFT(A4,7)="Passivo",C4<D4),"(-)","-"))))) -> (-) | G4: =IFERROR(IF(C4-D4>=0,C4-D4,(C4-D4)*-1),"") -> 79320531.35 | I4: DESCRIÇÃO | K4: 01.01.2021 a 30.09.2021 | L4: 01.01.2020 a 30.09.2020
A5: =IF(LEFT(#REF!,7)="Despesa","",IF(LEFT(#REF!,7)="Receita","",#REF!)) ->  | B5: =IF(LEFT(A5,7)="Despesa","",IF(LEFT(A5,7)="Receita","",IF(A5="","",#REF!))) ->  | C5: =IFERROR(IFERROR(IFERROR(INDEX(BP!B:H,MATCH(B5,BP!C:C,0),6),INDEX(BP!B:H,MATCH(B5,BP!D:D,0),6)),INDEX(BP!B:H,MATCH(B5,BP!E:E,0),6)),"") ->  | D5: =IFERROR(IFERROR(IFERROR(INDEX(BP!B:H,MATCH(B5,BP!C:C,0),7),INDEX(BP!B:H,MATCH(B5,BP!D:D,0),7)),INDEX(BP!B:H,MATCH(B5,BP!E:E,0),7)),"") ->  | E5: =IF(A5="","",IF(C5>D5,"Aumento em","Redução em")) ->  | G5: =IFERROR(IF(C5-D5>=0,C5-D5,(C5-D5)*-1),"") ->  | I5: FLUXO DE CAIXA DAS ATIVIDADES OPERACIONAIS
A6: =IF(LEFT(#REF!,7)="Despesa","",IF(LEFT(#REF!,7)="Receita","",#REF!)) ->  | B6: =IF(LEFT(A6,7)="Despesa","",IF(LEFT(A6,7)="Receita","",IF(A6="","",#REF!))) ->  | C6: =IFERROR(IFERROR(IFERROR(INDEX(BP!B:H,MATCH(B6,BP!C:C,0),6),INDEX(BP!B:H,MATCH(B6,BP!D:D,0),6)),INDEX(BP!B:H,MATCH(B6,BP!E:E,0),6)),"") ->  | D6: =IFERROR(IFERROR(IFERROR(INDEX(BP!B:H,MATCH(B6,BP!C:C,0),7),INDEX(BP!B:H,MATCH(B6,BP!D:D,0),7)),INDEX(BP!B:H,MATCH(B6,BP!E:E,0),7)),"") ->  | E6: =IF(A6="","",IF(C6>D6,"Aumento em","Redução em")) ->  | G6: =IF(F6="(-)",IFERROR(IF(C6-D6>=0,C6-D6,(C6-D6)*-1),"")*-1,IFERROR(IF(C6-D6>=0,C6-D6,(C6-D6)*-1),"")) ->  | I6: Resultado do Exercício | K6: -93040304.05 | L6: -13463813.49
A7: =IF(LEFT(#REF!,7)="Despesa","",IF(LEFT(#REF!,7)="Receita","",#REF!)) ->  | B7: =IF(LEFT(A7,7)="Despesa","",IF(LEFT(A7,7)="Receita","",IF(A7="","",#REF!))) ->  | C7: =IFERROR(IFERROR(IFERROR(INDEX(BP!B:H,MATCH(B7,BP!C:C,0),6),INDEX(BP!B:H,MATCH(B7,BP!D:D,0),6)),INDEX(BP!B:H,MATCH(B7,BP!E:E,0),6)),"") ->  | D7: =IFERROR(IFERROR(IFERROR(INDEX(BP!B:H,MATCH(B7,BP!C:C,0),7),INDEX(BP!B:H,MATCH(B7,BP!D:D,0),7)),INDEX(BP!B:H,MATCH(B7,BP!E:E,0),7)),"") ->  | E7: =IF(A7="","",IF(C7>D7,"Aumento em","Redução em")) ->  | I7: Ajustes de Exercícios Anteriores | K7: -2552006.2 | L7: 373059283.9
A8: =IF(LEFT(#REF!,7)="Despesa","",IF(LEFT(#REF!,7)="Receita","",#REF!)) ->  | B8: =IF(LEFT(A8,7)="Despesa","",IF(LEFT(A8,7)="Receita","",IF(A8="","",#REF!))) ->  | C8: =IFERROR(IFERROR(IFERROR(INDEX(BP!B:H,MATCH(B8,BP!C:C,0),6),INDEX(BP!B:H,MATCH(B8,BP!D:D,0),6)),INDEX(BP!B:H,MATCH(B8,BP!E:E,0),6)),"") ->  | D8: =IFERROR(IFERROR(IFERROR(INDEX(BP!B:H,MATCH(B8,BP!C:C,0),7),INDEX(BP!B:H,MATCH(B8,BP!D:D,0),7)),INDEX(BP!B:H,MATCH(B8,BP!E:E,0),7)),"") ->  | I8: Depreciação e Amortização | K8: 30356667.93 | L8: 23789644.95
A9: =IF(LEFT(#REF!,7)="Despesa","",IF(LEFT(#REF!,7)="Receita","",#REF!)) ->  | B9: =IF(LEFT(A9,7)="Despesa","",IF(LEFT(A9,7)="Receita","",IF(A9="","",#REF!))) ->  | C9: =IFERROR(IFERROR(IFERROR(INDEX(BP!B:H,MATCH(B9,BP!C:C,0),6),INDEX(BP!B:H,MATCH(B9,BP!D:D,0),6)),INDEX(BP!B:H,MATCH(B9,BP!E:E,0),6)),"") ->  | D9: =IFERROR(IFERROR(IFERROR(INDEX(BP!B:H,MATCH(B9,BP!C:C,0),7),INDEX(BP!B:H,MATCH(B9,BP!D:D,0),7)),INDEX(BP!B:H,MATCH(B9,BP!E:E,0),7)),"") ->  | I9: Redução a Valor Recup. De Intangível | L9: 0
A10: =IF(LEFT(#REF!,7)="Despesa","",IF(LEFT(#REF!,7)="Receita","",#REF!)) ->  | B10: =IF(LEFT(A10,7)="Despesa","",IF(LEFT(A10,7)="Receita","",IF(A10="","",#REF!))) ->  | C10: =IFERROR(IFERROR(IFERROR(INDEX(BP!B:H,MATCH(B10,BP!C:C,0),6),INDEX(BP!B:H,MATCH(B10,BP!D:D,0),6)),INDEX(BP!B:H,MATCH(B10,BP!E:E,0),6)),"") ->  | D10: =IFERROR(IFERROR(IFERROR(INDEX(BP!B:H,MATCH(B10,BP!C:C,0),7),INDEX(BP!B:H,MATCH(B10,BP!D:D,0),7)),INDEX(BP!B:H,MATCH(B10,BP!E:E,0),7)),"") ->  | I10: Ajustes de Avaliação Patrimonial de Ativos | K10: 383667.75 | L10: 0
A11: =IF(LEFT(#REF!,7)="Despesa","",IF(LEFT(#REF!,7)="Receita","",#REF!)) ->  | B11: =IF(LEFT(A11,7)="Despesa","",IF(LEFT(A11,7)="Receita","",IF(A11="","",#REF!))) ->  | C11: =IFERROR(IFERROR(IFERROR(INDEX(BP!B:H,MATCH(B11,BP!C:C,0),6),INDEX(BP!B:H,MATCH(B11,BP!D:D,0),6)),INDEX(BP!B:H,MATCH(B11,BP!E:E,0),6)),"") ->  | D11: =IFERROR(IFERROR(IFERROR(INDEX(BP!B:H,MATCH(B11,BP!C:C,0),7),INDEX(BP!B:H,MATCH(B11,BP!D:D,0),7)),INDEX(BP!B:H,MATCH(B11,BP!E:E,0),7)),"") ->  | I11: Ajustes de Avaliação Patrimonial de Ativos | K11: -383667.75 | L11: 0
I12: AFAC - PL
A13: =IF(LEFT(#REF!,7)="Despesa","",IF(LEFT(#REF!,7)="Receita","",#REF!)) ->  | B13: =IF(LEFT(A13,7)="Despesa","",IF(LEFT(A13,7)="Receita","",IF(A13="","",#REF!))) ->  | C13: =IFERROR(IFERROR(IFERROR(INDEX(BP!B:H,MATCH(B13,BP!C:C,0),6),INDEX(BP!B:H,MATCH(B13,BP!D:D,0),6)),INDEX(BP!B:H,MATCH(B13,BP!E:E,0),6)),"") ->  | D13: =IFERROR(IFERROR(IFERROR(INDEX(BP!B:H,MATCH(B13,BP!C:C,0),7),INDEX(BP!B:H,MATCH(B13,BP!D:D,0),7)),INDEX(BP!B:H,MATCH(B13,BP!E:E,0),7)),"") ->  | I13: Resultado do Exercício Ajustado | K13: -65235642.32 | L13: 383385115.4
A14: =IF(LEFT(#REF!,7)="Despesa","",IF(LEFT(#REF!,7)="Receita","",#REF!)) ->  | B14: =IF(LEFT(A14,7)="Despesa","",IF(LEFT(A14,7)="Receita","",IF(A14="","",#REF!))) ->  | C14: =IFERROR(IFERROR(IFERROR(INDEX(BP!B:H,MATCH(B14,BP!C:C,0),6),INDEX(BP!B:H,MATCH(B14,BP!D:D,0),6)),INDEX(BP!B:H,MATCH(B14,BP!E:E,0),6)),"") ->  | D14: =IFERROR(IFERROR(IFERROR(INDEX(BP!B:H,MATCH(B14,BP!C:C,0),7),INDEX(BP!B:H,MATCH(B14,BP!D:D,0),7)),INDEX(BP!B:H,MATCH(B14,BP!E:E,0),7)),"") ->  | I14: Variações Patrimoniais | K14: 353115681 | L14: 19578971.76 | M14: =[1]DFC!$K$14-L14 -> 0
A15: =IF(LEFT(#REF!,7)="Despesa","",IF(LEFT(#REF!,7)="Receita","",#REF!)) ->  | B15: =IF(LEFT(A15,7)="Despesa","",IF(LEFT(A15,7)="Receita","",IF(A15="","",#REF!))) ->  | C15: =IFERROR(IFERROR(IFERROR(INDEX(BP!B:H,MATCH(B15,BP!C:C,0),6),INDEX(BP!B:H,MATCH(B15,BP!D:D,0),6)),INDEX(BP!B:H,MATCH(B15,BP!E:E,0),6)),"") ->  | D15: =IFERROR(IFERROR(IFERROR(INDEX(BP!B:H,MATCH(B15,BP!C:C,0),7),INDEX(BP!B:H,MATCH(B15,BP!D:D,0),7)),INDEX(BP!B:H,MATCH(B15,BP!E:E,0),7)),"") ->  | I15: Aumento em | J15: Subvenção de Custeio SUS a Receber | K15: -351050840.9 | L15: -401285976.6
A16: =IF(LEFT(#REF!,7)="Despesa","",IF(LEFT(#REF!,7)="Receita","",#REF!)) ->  | B16: =IF(LEFT(A16,7)="Despesa","",IF(LEFT(A16,7)="Receita","",IF(A16="","",#REF!))) ->  | C16: =IFERROR(IFERROR(IFERROR(INDEX(BP!B:H,MATCH(B16,BP!C:C,0),6),INDEX(BP!B:H,MATCH(B16,BP!D:D,0),6)),INDEX(BP!B:H,MATCH(B16,BP!E:E,0),6)),"") ->  | D16: =IFERROR(IFERROR(IFERROR(INDEX(BP!B:H,MATCH(B16,BP!C:C,0),7),INDEX(BP!B:H,MATCH(B16,BP!D:D,0),7)),INDEX(BP!B:H,MATCH(B16,BP!E:E,0),7)),"") ->  | I16: Redução/Aumento | J16: Valores a Curto Prazo - SUS | K16: 31682989.92 | L16: -4064075.2
A17: =IF(LEFT(#REF!,7)="Despesa","",IF(LEFT(#REF!,7)="Receita","",#REF!)) ->  | B17: =IF(LEFT(A17,7)="Despesa","",IF(LEFT(A17,7)="Receita","",IF(A17="","",#REF!))) ->  | C17: =IFERROR(IFERROR(IFERROR(INDEX(BP!B:H,MATCH(B17,BP!C:C,0),6),INDEX(BP!B:H,MATCH(B17,BP!D:D,0),6)),INDEX(BP!B:H,MATCH(B17,BP!E:E,0),6)),"") ->  | D17: =IFERROR(IFERROR(IFERROR(INDEX(BP!B:H,MATCH(B17,BP!C:C,0),7),INDEX(BP!B:H,MATCH(B17,BP!D:D,0),7)),INDEX(BP!B:H,MATCH(B17,BP!E:E,0),7)),"") ->  | I17: Aumento em | J17: Adiantamentos e Créditos a Receber | K17: -137429201.5 | L17: -115969161.3
A18: =IF(LEFT(#REF!,7)="Despesa","",IF(LEFT(#REF!,7)="Receita","",#REF!)) ->  | B18: =IF(LEFT(A18,7)="Despesa","",IF(LEFT(A18,7)="Receita","",IF(A18="","",#REF!))) ->  | C18: =IFERROR(IFERROR(IFERROR(INDEX(BP!B:H,MATCH(B18,BP!C:C,0),6),INDEX(BP!B:H,MATCH(B18,BP!D:D,0),6)),INDEX(BP!B:H,MATCH(B18,BP!E:E,0),6)),"") ->  | D18: =IFERROR(IFERROR(IFERROR(INDEX(BP!B:H,MATCH(B18,BP!C:C,0),7),INDEX(BP!B:H,MATCH(B18,BP!D:D,0),7)),INDEX(BP!B:H,MATCH(B18,BP!E:E,0),7)),"") ->  | I18: Aumento em | J18: Estoques | K18: -21940400.15 | L18: -135191886.3
A19: =IF(LEFT(#REF!,7)="Despesa","",IF(LEFT(#REF!,7)="Receita","",#REF!)) ->  | B19: =IF(LEFT(A19,7)="Despesa","",IF(LEFT(A19,7)="Receita","",IF(A19="","",#REF!))) ->  | C19: =IFERROR(IFERROR(IFERROR(INDEX(BP!B:H,MATCH(B19,BP!C:C,0),6),INDEX(BP!B:H,MATCH(B19,BP!D:D,0),6)),INDEX(BP!B:H,MATCH(B19,BP!E:E,0),6)),"") ->  | D19: =IFERROR(IFERROR(IFERROR(INDEX(BP!B:H,MATCH(B19,BP!C:C,0),7),INDEX(BP!B:H,MATCH(B19,BP!D:D,0),7)),INDEX(BP!B:H,MATCH(B19,BP!E:E,0),7)),"") ->  | I19: Aumento em | J19: Outras Despesas Antecipadas | K19: 0 | L19: -9067.11
I20: Aumento em | J20: Valores a Longo Prazo - SUS | K20: -10522321.88
A21: =IF(LEFT(#REF!,7)="Despesa","",IF(LEFT(#REF!,7)="Receita","",#REF!)) ->  | B21: =IF(LEFT(A21,7)="Despesa","",IF(LEFT(A21,7)="Receita","",IF(A21="","",#REF!))) ->  | C21: =IFERROR(IFERROR(IFERROR(INDEX(BP!B:H,MATCH(B21,BP!C:C,0),6),INDEX(BP!B:H,MATCH(B21,BP!D:D,0),6)),INDEX(BP!B:H,MATCH(B21,BP!E:E,0),6)),"") ->  | D21: =IFERROR(IFERROR(IFERROR(INDEX(BP!B:H,MATCH(B21,BP!C:C,0),7),INDEX(BP!B:H,MATCH(B21,BP!D:D,0),7)),INDEX(BP!B:H,MATCH(B21,BP!E:E,0),7)),"") ->  | I21: Aumento em | J21: Depósitos Judiciais | K21: -3722955.67 | L21: -5697476.82
A22: =IF(LEFT(#REF!,7)="Despesa","",IF(LEFT(#REF!,7)="Receita","",#REF!)) ->  | B22: =IF(LEFT(A22,7)="Despesa","",IF(LEFT(A22,7)="Receita","",IF(A22="","",#REF!))) ->  | C22: =IFERROR(IFERROR(IFERROR(INDEX(BP!B:H,MATCH(B22,BP!C:C,0),6),INDEX(BP!B:H,MATCH(B22,BP!D:D,0),6)),INDEX(BP!B:H,MATCH(B22,BP!E:E,0),6)),"") ->  | D22: =IFERROR(IFERROR(IFERROR(INDEX(BP!B:H,MATCH(B22,BP!C:C,0),7),INDEX(BP!B:H,MATCH(B22,BP!D:D,0),7)),INDEX(BP!B:H,MATCH(B22,BP!E:E,0),7)),"") ->  | I22: Aumento em | J22: Obrigações Trabalhistas a Pagar | K22: 255384564.4 | L22: 295480036.3
A23: =IF(LEFT(#REF!,7)="Despesa","",IF(LEFT(#REF!,7)="Receita","",#REF!)) ->  | B23: =IF(LEFT(A23,7)="Despesa","",IF(LEFT(A23,7)="Receita","",IF(A23="","",#REF!))) ->  | C23: =IFERROR(IFERROR(IFERROR(INDEX(BP!B:H,MATCH(B23,BP!C:C,0),6),INDEX(BP!B:H,MATCH(B23,BP!D:D,0),6)),INDEX(BP!B:H,MATCH(B23,BP!E:E,0),6)),"") ->  | D23: =IFERROR(IFERROR(IFERROR(INDEX(BP!B:H,MATCH(B23,BP!C:C,0),7),INDEX(BP!B:H,MATCH(B23,BP!D:D,0),7)),INDEX(BP!B:H,MATCH(B23,BP!E:E,0),7)),"") ->  | I23: Redução/Aumento | J23: Fornecedores e Contas a Pagar a Curto Prazo | K23: 25250519.94 | L23: -47409319.58
A24: =IF(LEFT(#REF!,7)="Despesa","",IF(LEFT(#REF!,7)="Receita","",#REF!)) ->  | B24: =IF(LEFT(A24,7)="Despesa","",IF(LEFT(A24,7)="Receita","",IF(A24="","",#REF!))) ->  | C24: =IFERROR(IFERROR(IFERROR(INDEX(BP!B:H,MATCH(B24,BP!C:C,0),6),INDEX(BP!B:H,MATCH(B24,BP!D:D,0),6)),INDEX(BP!B:H,MATCH(B24,BP!E:E,0),6)),"") ->  | D24: =IFERROR(IFERROR(IFERROR(INDEX(BP!B:H,MATCH(B24,BP!C:C,0),7),INDEX(BP!B:H,MATCH(B24,BP!D:D,0),7)),INDEX(BP!B:H,MATCH(B24,BP!E:E,0),7)),"") ->  | I24: Aumento/Redução | J24: Contratos de Arrendamento a Pagar | K24: -23705697.77 | L24: 7258374.933
A25: =IF(LEFT(#REF!,7)="Despesa","",IF(LEFT(#REF!,7)="Receita","",#REF!)) ->  | B25: =IF(LEFT(A25,7)="Despesa","",IF(LEFT(A25,7)="Receita","",IF(A25="","",#REF!))) ->  | C25: =IFERROR(IFERROR(IFERROR(INDEX(BP!B:H,MATCH(B25,BP!C:C,0),6),INDEX(BP!B:H,MATCH(B25,BP!D:D,0),6)),INDEX(BP!B:H,MATCH(B25,BP!E:E,0),6)),"") ->  | D25: =IFERROR(IFERROR(IFERROR(INDEX(BP!B:H,MATCH(B25,BP!C:C,0),7),INDEX(BP!B:H,MATCH(B25,BP!D:D,0),7)),INDEX(BP!B:H,MATCH(B25,BP!E:E,0),7)),"") ->  | I25: Redução/Aumento | J25: Retenções de Impostos, Contribuições | K25: 11795077.7 | L25: -29258916.41
A26: =IF(LEFT(#REF!,7)="Despesa","",IF(LEFT(#REF!,7)="Receita","",#REF!)) ->  | B26: =IF(LEFT(A26,7)="Despesa","",IF(LEFT(A26,7)="Receita","",IF(A26="","",#REF!))) ->  | C26: =IFERROR(IFERROR(IFERROR(INDEX(BP!B:H,MATCH(B26,BP!C:C,0),6),INDEX(BP!B:H,MATCH(B26,BP!D:D,0),6)),INDEX(BP!B:H,MATCH(B26,BP!E:E,0),6)),"") ->  | D26: =IFERROR(IFERROR(IFERROR(INDEX(BP!B:H,MATCH(B26,BP!C:C,0),7),INDEX(BP!B:H,MATCH(B26,BP!D:D,0),7)),INDEX(BP!B:H,MATCH(B26,BP!E:E,0),7)),"") ->  | I26: Redução em | J26: Obrigações Transitórias a Curto Prazo | K26: -16492563.45 | L26: -81086551.58
A27: =IF(LEFT(#REF!,7)="Despesa","",IF(LEFT(#REF!,7)="Receita","",#REF!)) ->  | B27: =IF(LEFT(A27,7)="Despesa","",IF(LEFT(A27,7)="Receita","",IF(A27="","",#REF!))) ->  | C27: =IFERROR(IFERROR(IFERROR(INDEX(BP!B:H,MATCH(B27,BP!C:C,0),6),INDEX(BP!B:H,MATCH(B27,BP!D:D,0),6)),INDEX(BP!B:H,MATCH(B27,BP!E:E,0),6)),"") ->  | D27: =IFERROR(IFERROR(IFERROR(INDEX(BP!B:H,MATCH(B27,BP!C:C,0),7),INDEX(BP!B:H,MATCH(B27,BP!D:D,0),7)),INDEX(BP!B:H,MATCH(B27,BP!E:E,0),7)),"") ->  | I27: Aumento/Redução | J27: Contingência para Indenizações Trabalhistas | K27: -5875202.53 | L27: 9178062.65
A28: =IF(LEFT(#REF!,7)="Despesa","",IF(LEFT(#REF!,7)="Receita","",#REF!)) ->  | B28: =IF(LEFT(A28,7)="Despesa","",IF(LEFT(A28,7)="Receita","",IF(A28="","",#REF!))) ->  | C28: =IFERROR(IFERROR(IFERROR(INDEX(BP!B:H,MATCH(B28,BP!C:C,0),6),INDEX(BP!B:H,MATCH(B28,BP!D:D,0),6)),INDEX(BP!B:H,MATCH(B28,BP!E:E,0),6)),"") ->  | D28: =IFERROR(IFERROR(IFERROR(INDEX(BP!B:H,MATCH(B28,BP!C:C,0),7),INDEX(BP!B:H,MATCH(B28,BP!D:D,0),7)),INDEX(BP!B:H,MATCH(B28,BP!E:E,0),7)),"") ->  | I28: Redução em | J28: Contingência para Indenizações Cíveis | K28: -1252149.42 | L28: -14613679.99
A29: =IF(LEFT(#REF!,7)="Despesa","",IF(LEFT(#REF!,7)="Receita","",#REF!)) ->  | B29: =IF(LEFT(A29,7)="Despesa","",IF(LEFT(A29,7)="Receita","",IF(A29="","",#REF!))) ->  | C29: =IFERROR(IFERROR(IFERROR(INDEX(BP!B:H,MATCH(B29,BP!C:C,0),6),INDEX(BP!B:H,MATCH(B29,BP!D:D,0),6)),INDEX(BP!B:H,MATCH(B29,BP!E:E,0),6)),"") ->  | D29: =IFERROR(IFERROR(IFERROR(INDEX(BP!B:H,MATCH(B29,BP!C:C,0),7),INDEX(BP!B:H,MATCH(B29,BP!D:D,0),7)),INDEX(BP!B:H,MATCH(B29,BP!E:E,0),7)),"") ->  | I29: Aumento em | J29: Subvenção a Realizar | K29: 513925933.7 | L29: 856240526.9
A30: =IF(LEFT(#REF!,7)="Despesa","",IF(LEFT(#REF!,7)="Receita","",#REF!)) ->  | B30: =IF(LEFT(A30,7)="Despesa","",IF(LEFT(A30,7)="Receita","",IF(A30="","",#REF!))) ->  | C30: =IFERROR(IFERROR(IFERROR(INDEX(BP!B:H,MATCH(B30,BP!C:C,0),6),INDEX(BP!B:H,MATCH(B30,BP!D:D,0),6)),INDEX(BP!B:H,MATCH(B30,BP!E:E,0),6)),"") ->  | D30: =IFERROR(IFERROR(IFERROR(INDEX(BP!B:H,MATCH(B30,BP!C:C,0),7),INDEX(BP!B:H,MATCH(B30,BP!D:D,0),7)),INDEX(BP!B:H,MATCH(B30,BP!E:E,0),7)),"") ->  | I30: Redução/Aumento | J30: Adiantamento Para Futuro Aumento de Capital - AFAC | K30: 87067928.63 | L30: -313991918
A31: =IF(LEFT(#REF!,7)="Despesa","",IF(LEFT(#REF!,7)="Receita","",#REF!)) ->  | B31: =IF(LEFT(A31,7)="Despesa","",IF(LEFT(A31,7)="Receita","",IF(A31="","",#REF!))) ->  | C31: =IFERROR(IFERROR(IFERROR(INDEX(BP!B:H,MATCH(B31,BP!C:C,0),6),INDEX(BP!B:H,MATCH(B31,BP!D:D,0),6)),INDEX(BP!B:H,MATCH(B31,BP!E:E,0),6)),"") ->  | D31: =IFERROR(IFERROR(IFERROR(INDEX(BP!B:H,MATCH(B31,BP!C:C,0),7),INDEX(BP!B:H,MATCH(B31,BP!D:D,0),7)),INDEX(BP!B:H,MATCH(B31,BP!E:E,0),7)),"") ->  | I31: Valores a Longo Prazo - Incentivo Mais Vida | K31: 0 | L31: 0
A32: =IF(LEFT(#REF!,7)="Despesa","",IF(LEFT(#REF!,7)="Receita","",#REF!)) ->  | B32: =IF(LEFT(A32,7)="Despesa","",IF(LEFT(A32,7)="Receita","",IF(A32="","",#REF!))) ->  | C32: =IFERROR(IFERROR(IFERROR(INDEX(BP!B:H,MATCH(B32,BP!C:C,0),6),INDEX(BP!B:H,MATCH(B32,BP!D:D,0),6)),INDEX(BP!B:H,MATCH(B32,BP!E:E,0),6)),"") ->  | D32: =IFERROR(IFERROR(IFERROR(INDEX(BP!B:H,MATCH(B32,BP!C:C,0),7),INDEX(BP!B:H,MATCH(B32,BP!D:D,0),7)),INDEX(BP!B:H,MATCH(B32,BP!E:E,0),7)),"") ->  | I32: FLUXO DE CAIXA LÍQUIDO DAS ATIVIDADES OPERACIONAIS | K32: 287880038.7 | L32: 402964087.1
A33: =IF(LEFT(#REF!,7)="Despesa","",IF(LEFT(#REF!,7)="Receita","",#REF!)) ->  | B33: =IF(LEFT(A33,7)="Despesa","",IF(LEFT(A33,7)="Receita","",IF(A33="","",#REF!))) ->  | C33: =IFERROR(IFERROR(IFERROR(INDEX(BP!B:H,MATCH(B33,BP!C:C,0),6),INDEX(BP!B:H,MATCH(B33,BP!D:D,0),6)),INDEX(BP!B:H,MATCH(B33,BP!E:E,0),6)),"") ->  | D33: =IFERROR(IFERROR(IFERROR(INDEX(BP!B:H,MATCH(B33,BP!C:C,0),7),INDEX(BP!B:H,MATCH(B33,BP!D:D,0),7)),INDEX(BP!B:H,MATCH(B33,BP!E:E,0),7)),"") -> 
A34: =IF(LEFT(#REF!,7)="Despesa","",IF(LEFT(#REF!,7)="Receita","",#REF!)) ->  | B34: =IF(LEFT(A34,7)="Despesa","",IF(LEFT(A34,7)="Receita","",IF(A34="","",#REF!))) ->  | C34: =IFERROR(IFERROR(IFERROR(INDEX(BP!B:H,MATCH(B34,BP!C:C,0),6),INDEX(BP!B:H,MATCH(B34,BP!D:D,0),6)),INDEX(BP!B:H,MATCH(B34,BP!E:E,0),6)),"") ->  | D34: =IFERROR(IFERROR(IFERROR(INDEX(BP!B:H,MATCH(B34,BP!C:C,0),7),INDEX(BP!B:H,MATCH(B34,BP!D:D,0),7)),INDEX(BP!B:H,MATCH(B34,BP!E:E,0),7)),"") ->  | I34: FLUXO DE CAIXA DAS ATIVIDADES DE INVESTIMENTO
A35: =IF(LEFT(#REF!,7)="Despesa","",IF(LEFT(#REF!,7)="Receita","",#REF!)) ->  | B35: =IF(LEFT(A35,7)="Despesa","",IF(LEFT(A35,7)="Receita","",IF(A35="","",#REF!))) ->  | C35: =IFERROR(IFERROR(IFERROR(INDEX(BP!B:H,MATCH(B35,BP!C:C,0),6),INDEX(BP!B:H,MATCH(B35,BP!D:D,0),6)),INDEX(BP!B:H,MATCH(B35,BP!E:E,0),6)),"") ->  | D35: =IFERROR(IFERROR(IFERROR(INDEX(BP!B:H,MATCH(B35,BP!C:C,0),7),INDEX(BP!B:H,MATCH(B35,BP!D:D,0),7)),INDEX(BP!B:H,MATCH(B35,BP!E:E,0),7)),"") ->  | I35: Adição de Imobilizado | K35: -126875319.9 | L35: -149311336.2
A36: =IF(LEFT(#REF!,7)="Despesa","",IF(LEFT(#REF!,7)="Receita","",#REF!)) ->  | B36: =IF(LEFT(A36,7)="Despesa","",IF(LEFT(A36,7)="Receita","",IF(A36="","",#REF!))) ->  | C36: =IFERROR(IFERROR(IFERROR(INDEX(BP!B:H,MATCH(B36,BP!C:C,0),6),INDEX(BP!B:H,MATCH(B36,BP!D:D,0),6)),INDEX(BP!B:H,MATCH(B36,BP!E:E,0),6)),"") ->  | D36: =IFERROR(IFERROR(IFERROR(INDEX(BP!B:H,MATCH(B36,BP!C:C,0),7),INDEX(BP!B:H,MATCH(B36,BP!D:D,0),7)),INDEX(BP!B:H,MATCH(B36,BP!E:E,0),7)),"") ->  | I36: Adição de Intangível | K36: -6235477.819 | L36: -5646722.606
A37: =IF(LEFT(#REF!,7)="Despesa","",IF(LEFT(#REF!,7)="Receita","",#REF!)) ->  | B37: =IF(LEFT(A37,7)="Despesa","",IF(LEFT(A37,7)="Receita","",IF(A37="","",#REF!))) ->  | C37: =IFERROR(IFERROR(IFERROR(INDEX(BP!B:H,MATCH(B37,BP!C:C,0),6),INDEX(BP!B:H,MATCH(B37,BP!D:D,0),6)),INDEX(BP!B:H,MATCH(B37,BP!E:E,0),6)),"") ->  | D37: =IFERROR(IFERROR(IFERROR(INDEX(BP!B:H,MATCH(B37,BP!C:C,0),7),INDEX(BP!B:H,MATCH(B37,BP!D:D,0),7)),INDEX(BP!B:H,MATCH(B37,BP!E:E,0),7)),"") ->  | I37: FLUXO DE CAIXA LÍQUIDO DAS ATIVIDADES DE INVESTIMENTO | K37: -133110797.7 | L37: -154958058.8
A38: =IF(LEFT(#REF!,7)="Despesa","",IF(LEFT(#REF!,7)="Receita","",#REF!)) ->  | B38: =IF(LEFT(A38,7)="Despesa","",IF(LEFT(A38,7)="Receita","",IF(A38="","",#REF!))) ->  | C38: =IFERROR(IFERROR(IFERROR(INDEX(BP!B:H,MATCH(B38,BP!C:C,0),6),INDEX(BP!B:H,MATCH(B38,BP!D:D,0),6)),INDEX(BP!B:H,MATCH(B38,BP!E:E,0),6)),"") ->  | D38: =IFERROR(IFERROR(IFERROR(INDEX(BP!B:H,MATCH(B38,BP!C:C,0),7),INDEX(BP!B:H,MATCH(B38,BP!D:D,0),7)),INDEX(BP!B:H,MATCH(B38,BP!E:E,0),7)),"") -> 
A39: =IF(LEFT(#REF!,7)="Despesa","",IF(LEFT(#REF!,7)="Receita","",#REF!)) ->  | B39: =IF(LEFT(A39,7)="Despesa","",IF(LEFT(A39,7)="Receita","",IF(A39="","",#REF!))) ->  | C39: =IFERROR(IFERROR(IFERROR(INDEX(BP!B:H,MATCH(B39,BP!C:C,0),6),INDEX(BP!B:H,MATCH(B39,BP!D:D,0),6)),INDEX(BP!B:H,MATCH(B39,BP!E:E,0),6)),"") ->  | D39: =IFERROR(IFERROR(IFERROR(INDEX(BP!B:H,MATCH(B39,BP!C:C,0),7),INDEX(BP!B:H,MATCH(B39,BP!D:D,0),7)),INDEX(BP!B:H,MATCH(B39,BP!E:E,0),7)),"") ->  | I39: FLUXO DE CAIXA DAS ATIVIDADES DE FINANCIAMENTO
A40: =IF(LEFT(#REF!,7)="Despesa","",IF(LEFT(#REF!,7)="Receita","",#REF!)) ->  | B40: =IF(LEFT(A40,7)="Despesa","",IF(LEFT(A40,7)="Receita","",IF(A40="","",#REF!))) ->  | C40: =IFERROR(IFERROR(IFERROR(INDEX(BP!B:H,MATCH(B40,BP!C:C,0),6),INDEX(BP!B:H,MATCH(B40,BP!D:D,0),6)),INDEX(BP!B:H,MATCH(B40,BP!E:E,0),6)),"") ->  | D40: =IFERROR(IFERROR(IFERROR(INDEX(BP!B:H,MATCH(B40,BP!C:C,0),7),INDEX(BP!B:H,MATCH(B40,BP!D:D,0),7)),INDEX(BP!B:H,MATCH(B40,BP!E:E,0),7)),"") ->  | I40: Reserva de transferência para AFAC Longo Prazo (PNC) | K40: 0 | L40: 0
A41: =IF(LEFT(#REF!,7)="Despesa","",IF(LEFT(#REF!,7)="Receita","",#REF!)) ->  | B41: =IF(LEFT(A41,7)="Despesa","",IF(LEFT(A41,7)="Receita","",IF(A41="","",#REF!))) ->  | C41: =IFERROR(IFERROR(IFERROR(INDEX(BP!B:H,MATCH(B41,BP!C:C,0),6),INDEX(BP!B:H,MATCH(B41,BP!D:D,0),6)),INDEX(BP!B:H,MATCH(B41,BP!E:E,0),6)),"") ->  | D41: =IFERROR(IFERROR(IFERROR(INDEX(BP!B:H,MATCH(B41,BP!C:C,0),7),INDEX(BP!B:H,MATCH(B41,BP!D:D,0),7)),INDEX(BP!B:H,MATCH(B41,BP!E:E,0),7)),"") ->  | I41: FLUXO DE CAIXA LÍQUIDO DAS ATIVIDADES DE FINANCIAMENTO | K41: 0 | L41: 0
A42: =IF(LEFT(#REF!,7)="Despesa","",IF(LEFT(#REF!,7)="Receita","",#REF!)) ->  | B42: =IF(LEFT(A42,7)="Despesa","",IF(LEFT(A42,7)="Receita","",IF(A42="","",#REF!))) ->  | C42: =IFERROR(IFERROR(IFERROR(INDEX(BP!B:H,MATCH(B42,BP!C:C,0),6),INDEX(BP!B:H,MATCH(B42,BP!D:D,0),6)),INDEX(BP!B:H,MATCH(B42,BP!E:E,0),6)),"") ->  | D42: =IFERROR(IFERROR(IFERROR(INDEX(BP!B:H,MATCH(B42,BP!C:C,0),7),INDEX(BP!B:H,MATCH(B42,BP!D:D,0),7)),INDEX(BP!B:H,MATCH(B42,BP!E:E,0),7)),"") -> 
A43: =IF(LEFT(#REF!,7)="Despesa","",IF(LEFT(#REF!,7)="Receita","",#REF!)) ->  | B43: =IF(LEFT(A43,7)="Despesa","",IF(LEFT(A43,7)="Receita","",IF(A43="","",#REF!))) ->  | C43: =IFERROR(IFERROR(IFERROR(INDEX(BP!B:H,MATCH(B43,BP!C:C,0),6),INDEX(BP!B:H,MATCH(B43,BP!D:D,0),6)),INDEX(BP!B:H,MATCH(B43,BP!E:E,0),6)),"") ->  | D43: =IFERROR(IFERROR(IFERROR(INDEX(BP!B:H,MATCH(B43,BP!C:C,0),7),INDEX(BP!B:H,MATCH(B43,BP!D:D,0),7)),INDEX(BP!B:H,MATCH(B43,BP!E:E,0),7)),"") ->  | I43: APURAÇÃO DO FLUXO DE CAIXA DO PERÍODO
A44: =IF(LEFT(#REF!,7)="Despesa","",IF(LEFT(#REF!,7)="Receita","",#REF!)) ->  | B44: =IF(LEFT(A44,7)="Despesa","",IF(LEFT(A44,7)="Receita","",IF(A44="","",#REF!))) ->  | C44: =IFERROR(IFERROR(IFERROR(INDEX(BP!B:H,MATCH(B44,BP!C:C,0),6),INDEX(BP!B:H,MATCH(B44,BP!D:D,0),6)),INDEX(BP!B:H,MATCH(B44,BP!E:E,0),6)),"") ->  | D44: =IFERROR(IFERROR(IFERROR(INDEX(BP!B:H,MATCH(B44,BP!C:C,0),7),INDEX(BP!B:H,MATCH(B44,BP!D:D,0),7)),INDEX(BP!B:H,MATCH(B44,BP!E:E,0),7)),"") ->  | I44: GERAÇÃO LÍQUIDA DE CAIXA E EQUIVALENTE DE CAIXA | K44: 154769241 | L44: 248006028.3
A45: =IF(LEFT(#REF!,7)="Despesa","",IF(LEFT(#REF!,7)="Receita","",#REF!)) ->  | B45: =IF(LEFT(A45,7)="Despesa","",IF(LEFT(A45,7)="Receita","",IF(A45="","",#REF!))) ->  | C45: =IFERROR(IFERROR(IFERROR(INDEX(BP!B:H,MATCH(B45,BP!C:C,0),6),INDEX(BP!B:H,MATCH(B45,BP!D:D,0),6)),INDEX(BP!B:H,MATCH(B45,BP!E:E,0),6)),"") ->  | D45: =IFERROR(IFERROR(IFERROR(INDEX(BP!B:H,MATCH(B45,BP!C:C,0),7),INDEX(BP!B:H,MATCH(B45,BP!D:D,0),7)),INDEX(BP!B:H,MATCH(B45,BP!E:E,0),7)),"") ->  | I45: CAIXA E EQUIVALENTE DE CAIXA INICIAL | K45: 745556301.5 | L45: 571660067.5
A46: =IF(LEFT(#REF!,7)="Despesa","",IF(LEFT(#REF!,7)="Receita","",#REF!)) ->  | B46: =IF(LEFT(A46,7)="Despesa","",IF(LEFT(A46,7)="Receita","",IF(A46="","",#REF!))) ->  | C46: =IFERROR(IFERROR(IFERROR(INDEX(BP!B:H,MATCH(B46,BP!C:C,0),6),INDEX(BP!B:H,MATCH(B46,BP!D:D,0),6)),INDEX(BP!B:H,MATCH(B46,BP!E:E,0),6)),"") ->  | D46: =IFERROR(IFERROR(IFERROR(INDEX(BP!B:H,MATCH(B46,BP!C:C,0),7),INDEX(BP!B:H,MATCH(B46,BP!D:D,0),7)),INDEX(BP!B:H,MATCH(B46,BP!E:E,0),7)),"") ->  | I46: CAIXA E EQUIVALENTE DE CAIXA FINAL | K46: 900325542.5 | L46: 819666095.8
A47: =IF(LEFT(#REF!,7)="Despesa","",IF(LEFT(#REF!,7)="Receita","",#REF!)) ->  | B47: =IF(LEFT(A47,7)="Despesa","",IF(LEFT(A47,7)="Receita","",IF(A47="","",#REF!))) ->  | C47: =IFERROR(IFERROR(IFERROR(INDEX(BP!B:H,MATCH(B47,BP!C:C,0),6),INDEX(BP!B:H,MATCH(B47,BP!D:D,0),6)),INDEX(BP!B:H,MATCH(B47,BP!E:E,0),6)),"") ->  | D47: =IFERROR(IFERROR(IFERROR(INDEX(BP!B:H,MATCH(B47,BP!C:C,0),7),INDEX(BP!B:H,MATCH(B47,BP!D:D,0),7)),INDEX(BP!B:H,MATCH(B47,BP!E:E,0),7)),"") ->  | I47: As notas explicativas da Administração são parte integrante das demonstrações contábeis consolidadas
A48: =IF(LEFT(#REF!,7)="Despesa","",IF(LEFT(#REF!,7)="Receita","",#REF!)) ->  | B48: =IF(LEFT(A48,7)="Despesa","",IF(LEFT(A48,7)="Receita","",IF(A48="","",#REF!))) ->  | C48: =IFERROR(IFERROR(IFERROR(INDEX(BP!B:H,MATCH(B48,BP!C:C,0),6),INDEX(BP!B:H,MATCH(B48,BP!D:D,0),6)),INDEX(BP!B:H,MATCH(B48,BP!E:E,0),6)),"") ->  | D48: =IFERROR(IFERROR(IFERROR(INDEX(BP!B:H,MATCH(B48,BP!C:C,0),7),INDEX(BP!B:H,MATCH(B48,BP!D:D,0),7)),INDEX(BP!B:H,MATCH(B48,BP!E:E,0),7)),"") ->  | K48: =K46-K45-K44 -> -1.788139343e-06 | L48: =L46-L45-L44 -> -0.004263103008
A49: =IF(LEFT(#REF!,7)="Despesa","",IF(LEFT(#REF!,7)="Receita","",#REF!)) ->  | B49: =IF(LEFT(A49,7)="Despesa","",IF(LEFT(A49,7)="Receita","",IF(A49="","",#REF!))) ->  | C49: =IFERROR(IFERROR(IFERROR(INDEX(BP!B:H,MATCH(B49,BP!C:C,0),6),INDEX(BP!B:H,MATCH(B49,BP!D:D,0),6)),INDEX(BP!B:H,MATCH(B49,BP!E:E,0),6)),"") ->  | D49: =IFERROR(IFERROR(IFERROR(INDEX(BP!B:H,MATCH(B49,BP!C:C,0),7),INDEX(BP!B:H,MATCH(B49,BP!D:D,0),7)),INDEX(BP!B:H,MATCH(B49,BP!E:E,0),7)),"") -> 
A50: =IF(LEFT(#REF!,7)="Despesa","",IF(LEFT(#REF!,7)="Receita","",#REF!)) ->  | B50: =IF(LEFT(A50,7)="Despesa","",IF(LEFT(A50,7)="Receita","",IF(A50="","",#REF!))) ->  | C50: =IFERROR(IFERROR(IFERROR(INDEX(BP!B:H,MATCH(B50,BP!C:C,0),6),INDEX(BP!B:H,MATCH(B50,BP!D:D,0),6)),INDEX(BP!B:H,MATCH(B50,BP!E:E,0),6)),"") ->  | D50: =IFERROR(IFERROR(IFERROR(INDEX(BP!B:H,MATCH(B50,BP!C:C,0),7),INDEX(BP!B:H,MATCH(B50,BP!D:D,0),7)),INDEX(BP!B:H,MATCH(B50,BP!E:E,0),7)),"") -> 
A51: =IF(LEFT(#REF!,7)="Despesa","",IF(LEFT(#REF!,7)="Receita","",#REF!)) ->  | B51: =IF(LEFT(A51,7)="Despesa","",IF(LEFT(A51,7)="Receita","",IF(A51="","",#REF!))) ->  | C51: =IFERROR(IFERROR(IFERROR(INDEX(BP!B:H,MATCH(B51,BP!C:C,0),6),INDEX(BP!B:H,MATCH(B51,BP!D:D,0),6)),INDEX(BP!B:H,MATCH(B51,BP!E:E,0),6)),"") ->  | D51: =IFERROR(IFERROR(IFERROR(INDEX(BP!B:H,MATCH(B51,BP!C:C,0),7),INDEX(BP!B:H,MATCH(B51,BP!D:D,0),7)),INDEX(BP!B:H,MATCH(B51,BP!E:E,0),7)),"") -> 

Sheet DVA
B1: EBSERH - EMPRESA BRASILEIRA DE SERVIÇOS HOSPITALARES
B2: Demonstração Valor Adicionado | C2: 30 de setembro de 2021
B3: Em reais
B4: Descrição | C4: 01.01.2021 a 30.09.2021 | D4: 01.01.2020 a 30.09.2020
B5: Geração de Valor Adicionado
B6: 1 - Receitas | C6: 99206690.4 | D6: 79751430.97
B7: 1.1 - Atividades Operacionais | C7: 99206690.4 | D7: 79751430.97
B8: 1.1.1 - Receita de Serviços e Exploração | C8: 99206690.4 | D8: 79751430.97
B9: 2 - Insumos Adquiridos de Terceiros | C9: 1800440404 | D9: 1366049152
B10: 2.1 - Materiais de Consumo | C10: 872865696.3 | D10: 598972579.7
B11: 2.2 - Energia elétrica, Água e Esgoto, Gás | C11: 95161308.53 | D11: 56075992.08
B12: 2.3 - Serviços de Terceiros | C12: 832413398.9 | D12: 693289722.6
B13: 2.4 - Contigências para Riscos Cíveis | C13: 0 | D13: 17710857.82
B14: 3 - Valor Adicionado Bruto (1-2) | C14: -1701233713 | D14: -1286297721
B15: 4 - Depreciação, Amortização, Impairment e Perdas | C15: 31985830.41 | D15: 25636644.91
B16: 4.1 - Depreciação do Período | C16: 26451592.41 | D16: 19452489.12
B17: 4.2 - Amortização do Período | C17: 4517738.43 | D17: 4167043.26
B18: 4.3 - Redução a Valor Recuperável - Impairment | C18: 0 | D18: 0
B19: 4.4 - Perdas Involuntárias e Desfazimentos | C19: 1016499.57 | D19: 2017112.53
B20: 5 - Valor Adicionado Líquido (3-4) | C20: -1733219544 | D20: -1311934366
B21: 6 - Valor Adicionado Recebido em Transferência | C21: 6025718648 | D21: 5284108213
B22: 6.1 - Repasses e Cotas Financeiras | C22: 6006715123 | D22: 5122917225
B23: 6.2 - Receitas Financeiras | C23: 1050429.59 | D23: 3617046
B24: 6.3 - Outras | C24: 17953095.79 | D24: 157573941.9
B25: 7 - Valor Adicionado Total a Distribuir (5+6) | C25: 4292499105 | D25: 3972173847
B26: 8 - Distribuição do Valor Adicionado | C26: 4292499105 | D26: 3972173847
B27: 8.1 - Remuneração do Trabalho | C27: 4354287437 | D27: 3960415229
B28: 8.1.1 - Pessoal e Diárias | C28: 3196008545 | D28: 2875752079
B29: 8.1.2 - Encargos | C29: 1158278892 | D29: 1084663150
B30: 8.2 - Remuneração do Governo | C30: 1214714.6 | D30: 1008763.66
B31: 8.2.1 - Impostos, Taxas, Contribuições, Multas e Juros | C31: 1214714.6 | D31: 1008763.66
B32: 8.2.2 - Provisão p/ Imposto de Renda | C32: 0 | D32: 0
B33: 8.2.3 - Provisão p/ CSLL | C33: 0 | D33: 0
B34: 8.3 - Remuneração do Capital de Terceiros | C34: 30037257.08 | D34: 24213667.59
B35: 8.3.1 - Locação | C35: 30037257.08 | D35: 24213667.59
B36: 8.4 - Remuneração de Capital Próprio | C36: -93040304.05 | D36: -13463813.49
B37: 8.4.1 Resultado do Exercício | C37: -93040304.05 | D37: -13463813.49
B38: As notas explicativas da Administração são parte integrante das demonstrações contábeis consolidadas.

Sheet DMPL
B1: EBSERH - EMPRESA BRASILEIRA DE SERVIÇOS HOSPITALARES
B2: Demonstração Consolidada das Mutações do Patrimônio Líquido | E2: 30 de setembro de 2021
B3: Em reais
B4: Componentes | C4: Capital Social Integralizado | D4: Reservas de Capital - AFAC | E4: Resultados Acumulados | F4: Patrimônio Líquido
B6: Saldos Iniciais (31/12/2019) | C6: 5000000 | D6: 219135056.9 | E6: -512557193.9 | F6: -288422136.9
B7: Resultado Líquido do Exercício | E7: -13463813.49
B8: Adiantamento Fut Aume Cap - AFAC | C8: 376384237.8 | D8: 67050000
B9: Compensação do Prejuízo
B10: Ajustes de Exercicios Anteriores | E10: -3324953.86
B11: Saldos Finais em 30/09/2020 | C11: 381384237.8 | D11: 67050000 | E11: -529345961.2 | F11: -80911723.47
B14: Componentes | C14: Capital Social Integralizado | D14: Reservas de Capital - AFAC | E14: Resultados Acumulados | F14: Patrimônio Líquido
B16: 2020-12-31 | C16: 381384237.8 | D16: 202658776.9 | E16: -529544354 | F16: 54498660.64
B17: Resultado Líquido do Exercício | E17: -93040304.05
B18: Adiantamento Fut Aume Cap - AFAC | D18: 87067928.63
B19: Compensação do Prejuízo
B20: Ajustes de Exercicios Anteriores | E20: -2552006.2
B21: Integaralização de AFAC ao Capital Social
B22: Saldos Finais em 30/09/2021 | C22: 381384237.8 | D22: 289726705.5 | E22: -625136664.3 | F22: 45974279.02
B23: As notas explicativas da Administração são parte integrante das demonstrações contábeis consolidadas.
C25: =C22-C16 -> 0

Sheet Cálculo de RI
A2: Despesa indedutível da Base IR | B2: 76026913.63 | C2: =0.15 -> 0.15 | D2: =C2*B3 -> 17975239.39 | E2: IR Sobre a Base
A3: Base de IR | B3: 119834929.3 | C3: 0.1 | D3: =C3*B5 -> 11977492.93 | E3: Adicional IR
A4: Percentual Isento | B4: 60000 | C4: 0.09 | D4: =B3*C4 -> 10785143.63 | E4: CSLL a Recolher
B5: 119774929.3 | D5: =D2+D3 -> 29952732.32 | E5: Total de IR Apurado
C6: 0.3 | D6: =D5*C6 -> 8985819.695 | E6: Compensação de Prejuízo Fiscal Acumulado
D8: =D5-D6 -> 20966912.62 | E8: IR a Recolher
D9: =D4 -> 10785143.63 | E9: CSLL a Recolher
D10: =D8+D9 -> 31752056.26 | E10: Total

Sheet -- (hidden)
A1: 1 - Receitas | C1: Grupo Dva | D1: Subgrupo DVA
A2: 1.1 - Atividades operacionais | C2: 1.1 - Atividades operacionais | D2: 1.1 - Atividades operacionais
A3: Relatório Financeiro PF | C3: Relatório Financeiro PF | D3: Relatório Financeiro PF
A4: 2 - Insumos Adquiridos de Terceiros | C4: 2 - Insumos Adquiridos de Terceiros | D4: 2 - Insumos Adquiridos de Terceiros
A5: 2.1 - Materiais de Consumo | C5: 2 - Insumos Adquiridos de Terceiros | D5: 2.1 - Materiais de Consumo
A6: 3.3.1.1.1.01.00 | B6: =VLOOKUP(A6,#REF!,2,0) ->  | C6: 2 - Insumos Adquiridos de Terceiros | D6: 2.1 - Materiais de Consumo
A7: 3.3.1.1.1.02.00 | B7: =VLOOKUP(A7,#REF!,2,0) ->  | C7: 2 - Insumos Adquiridos de Terceiros | D7: 2.1 - Materiais de Consumo
A8: 3.3.1.1.1.03.00 | B8: =VLOOKUP(A8,#REF!,2,0) ->  | C8: 2 - Insumos Adquiridos de Terceiros | D8: 2.1 - Materiais de Consumo
A9: 3.3.1.1.1.04.00 | B9: =VLOOKUP(A9,#REF!,2,0) ->  | C9: 2 - Insumos Adquiridos de Terceiros | D9: 2.1 - Materiais de Consumo
A10: 3.3.1.1.1.05.00 | B10: =VLOOKUP(A10,#REF!,2,0) ->  | C10: 2 - Insumos Adquiridos de Terceiros | D10: 2.1 - Materiais de Consumo
A11: 3.3.1.1.1.06.00 | B11: =VLOOKUP(A11,#REF!,2,0) ->  | C11: 2 - Insumos Adquiridos de Terceiros | D11: 2.1 - Materiais de Consumo
A12: 3.3.1.1.1.07.00 | B12: =VLOOKUP(A12,#REF!,2,0) ->  | C12: 2 - Insumos Adquiridos de Terceiros | D12: 2.1 - Materiais de Consumo
A13: 3.3.1.1.1.08.00 | B13: =VLOOKUP(A13,#REF!,2,0) ->  | C13: 2 - Insumos Adquiridos de Terceiros | D13: 2.1 - Materiais de Consumo
A14: 3.3.1.1.1.09.00 | B14: =VLOOKUP(A14,#REF!,2,0) ->  | C14: 2 - Insumos Adquiridos de Terceiros | D14: 2.1 - Materiais de Consumo
A15: 3.3.1.1.1.99.00 | B15: =VLOOKUP(A15,#REF!,2,0) ->  | C15: 2 - Insumos Adquiridos de Terceiros | D15: 2.1 - Materiais de Consumo
A16: 3.6.3.3.1.01.00 | B16: =VLOOKUP(A16,#REF!,2,0) ->  | C16: 2 - Insumos Adquiridos de Terceiros | D16: 2.1 - Materiais de Consumo
A17: 2.2 - Energia elétrica, Água e Esgoto, Gás | C17: 2 - Insumos Adquiridos de Terceiros | D17: 2.2 - Energia elétrica, Água e Esgoto, Gás
A18: 3.3.2.3.2.08.00 | B18: =VLOOKUP(A18,#REF!,2,0) ->  | C18: 2 - Insumos Adquiridos de Terceiros | D18: 2.2 - Energia elétrica, Água e Esgoto, Gás
A19: 3.3.2.3.4.08.00 | B19: =VLOOKUP(A19,#REF!,2,0) ->  | C19: 2 - Insumos Adquiridos de Terceiros | D19: 2.2 - Energia elétrica, Água e Esgoto, Gás
A20: 3.3.2.3.1.08.00 | B20: =VLOOKUP(A20,#REF!,2,0) ->  | C20: 2 - Insumos Adquiridos de Terceiros | D20: 2.2 - Energia elétrica, Água e Esgoto, Gás
A21: 2.3 - Serviços de Terceiros | C21: 2 - Insumos Adquiridos de Terceiros | D21: 2.3 - Serviços de Terceiros
A22: 3.3.2.2.1.01.00 | B22: =VLOOKUP(A22,#REF!,2,0) ->  | C22: 2 - Insumos Adquiridos de Terceiros | D22: 2.3 - Serviços de Terceiros
A23: 3.3.2.2.1.02.00 | B23: =VLOOKUP(A23,#REF!,2,0) ->  | C23: 2 - Insumos Adquiridos de Terceiros | D23: 2.3 - Serviços de Terceiros
A24: 3.3.2.2.1.09.00 | B24: =VLOOKUP(A24,#REF!,2,0) ->  | C24: 2 - Insumos Adquiridos de Terceiros | D24: 2.3 - Serviços de Terceiros
A25: 3.3.2.2.1.05.00 | B25: =VLOOKUP(A25,#REF!,2,0) ->  | C25: 2 - Insumos Adquiridos de Terceiros | D25: 2.3 - Serviços de Terceiros
A26: 3.3.2.3.1.01.00 | B26: =VLOOKUP(A26,#REF!,2,0) ->  | C26: 2 - Insumos Adquiridos de Terceiros | D26: 2.3 - Serviços de Terceiros
A27: 3.3.2.3.1.02.00 | B27: =VLOOKUP(A27,#REF!,2,0) ->  | C27: 2 - Insumos Adquiridos de Terceiros | D27: 2.3 - Serviços de Terceiros
A28: 3.3.2.3.1.03.00 | B28: =VLOOKUP(A28,#REF!,2,0) ->  | C28: 2 - Insumos Adquiridos de Terceiros | D28: 2.3 - Serviços de Terceiros
A29: 3.3.2.3.1.04.00 | B29: =VLOOKUP(A29,#REF!,2,0) ->  | C29: 2 - Insumos Adquiridos de Terceiros | D29: 2.3 - Serviços de Terceiros
A30: 3.3.2.3.1.05.00 | B30: =VLOOKUP(A30,#REF!,2,0) ->  | C30: 2 - Insumos Adquiridos de Terceiros | D30: 2.3 - Serviços de Terceiros
A31: 3.3.2.3.1.06.00 | B31: =VLOOKUP(A31,#REF!,2,0) ->  | C31: 2 - Insumos Adquiridos de Terceiros | D31: 2.3 - Serviços de Terceiros
A32: 3.3.2.3.1.07.00 | B32: =VLOOKUP(A32,#REF!,2,0) ->  | C32: 2 - Insumos Adquiridos de Terceiros | D32: 2.3 - Serviços de Terceiros
A33: 3.3.2.3.1.10.00 | B33: =VLOOKUP(A33,#REF!,2,0) ->  | C33: 2 - Insumos Adquiridos de Terceiros | D33: 2.3 - Serviços de Terceiros
A34: 3.3.2.3.1.11.00 | B34: =VLOOKUP(A34,#REF!,2,0) ->  | C34: 2 - Insumos Adquiridos de Terceiros | D34: 2.3 - Serviços de Terceiros
A35: 3.3.2.3.1.12.00 | B35: =VLOOKUP(A35,#REF!,2,0) ->  | C35: 2 - Insumos Adquiridos de Terceiros | D35: 2.3 - Serviços de Terceiros
A36: 3.3.2.3.1.13.00 | B36: =VLOOKUP(A36,#REF!,2,0) ->  | C36: 2 - Insumos Adquiridos de Terceiros | D36: 2.3 - Serviços de Terceiros
A37: 3.3.2.3.1.14.00 | B37: =VLOOKUP(A37,#REF!,2,0) ->  | C37: 2 - Insumos Adquiridos de Terceiros | D37: 2.3 - Serviços de Terceiros
A38: 3.3.2.3.1.99.00 | B38: =VLOOKUP(A38,#REF!,2,0) ->  | C38: 2 - Insumos Adquiridos de Terceiros | D38: 2.3 - Serviços de Terceiros
A39: 3.3.2.3.2.01.00 | B39: =VLOOKUP(A39,#REF!,2,0) ->  | C39: 2 - Insumos Adquiridos de Terceiros | D39: 2.3 - Serviços de Terceiros
A40: 3.3.2.3.2.02.00 | B40: =VLOOKUP(A40,#REF!,2,0) ->  | C40: 2 - Insumos Adquiridos de Terceiros | D40: 2.3 - Serviços de Terceiros
A41: 3.3.2.3.2.03.00 | B41: =VLOOKUP(A41,#REF!,2,0) ->  | C41: 2 - Insumos Adquiridos de Terceiros | D41: 2.3 - Serviços de Terceiros
A42: 3.3.2.3.2.05.00 | B42: =VLOOKUP(A42,#REF!,2,0) ->  | C42: 2 - Insumos Adquiridos de Terceiros | D42: 2.3 - Serviços de Terceiros
A43: 3.3.2.3.2.11.00 | B43: =VLOOKUP(A43,#REF!,2,0) ->  | C43: 2 - Insumos Adquiridos de Terceiros | D43: 2.3 - Serviços de Terceiros
A44: 3.3.2.3.2.12.00 | B44: =VLOOKUP(A44,#REF!,2,0) ->  | C44: 2 - Insumos Adquiridos de Terceiros | D44: 2.3 - Serviços de Terceiros
A45: 3.3.2.3.4.12.00 | B45: =VLOOKUP(A45,#REF!,2,0) ->  | C45: 2 - Insumos Adquiridos de Terceiros | D45: 2.3 - Serviços de Terceiros
A46: 3.3.2.3.4.01.00 | B46: =VLOOKUP(A46,#REF!,2,0) ->  | C46: 2 - Insumos Adquiridos de Terceiros | D46: 2.3 - Serviços de Terceiros
A47: 3.3.2.3.4.03.00 | B47: =VLOOKUP(A47,#REF!,2,0) ->  | C47: 2 - Insumos Adquiridos de Terceiros | D47: 2.3 - Serviços de Terceiros
A48: 3.3.2.3.4.05.00 | B48: =VLOOKUP(A48,#REF!,2,0) ->  | C48: 2 - Insumos Adquiridos de Terceiros | D48: 2.3 - Serviços de Terceiros
A49: 3.3.2.3.4.11.00 | B49: =VLOOKUP(A49,#REF!,2,0) ->  | C49: 2 - Insumos Adquiridos de Terceiros | D49: 2.3 - Serviços de Terceiros
A50: 3.3.2.3.4.13.00 | B50: =VLOOKUP(A50,#REF!,2,0) ->  | C50: 2 - Insumos Adquiridos de Terceiros | D50: 2.3 - Serviços de Terceiros
A51: 3.3.2.3.5.02.00 | B51: =VLOOKUP(A51,#REF!,2,0) ->  | C51: 2 - Insumos Adquiridos de Terceiros | D51: 2.3 - Serviços de Terceiros
A52: 3.6.4.0.1.01.00 | B52: =VLOOKUP(A52,#REF!,2,0) ->  | C52: 2 - Insumos Adquiridos de Terceiros | D52: 2.3 - Serviços de Terceiros
A53: 3.6.4.0.2.01.00 | B53: =VLOOKUP(A53,#REF!,2,0) ->  | C53: 2 - Insumos Adquiridos de Terceiros | D53: 2.3 - Serviços de Terceiros
A54: 3.3.2.2.1.10.00 | B54: =VLOOKUP(A54,#REF!,2,0) ->  | C54: 2 - Insumos Adquiridos de Terceiros | D54: 2.3 - Serviços de Terceiros
A55: 3 - Valor Adicionado Bruto (1-2) | C55: 3 - Valor Adicionado Bruto (1-2) | D55: 3 - Valor Adicionado Bruto (1-2)
A56: 4 - Depreciação, Amortização e Exaustão | C56: 4 - Depreciação, Amortização e Exaustão | D56: 4 - Depreciação, Amortização e Exaustão
A57: 4.1 - Depreciação do Período | C57: 4 - Depreciação, Amortização e Exaustão | D57: 4.1 - Depreciação do Período
A58: 3.3.3.1.1.01.00 | B58: =VLOOKUP(A58,#REF!,2,0) ->  | C58: 4 - Depreciação, Amortização e Exaustão | D58: 4.1 - Depreciação do Período
A59: 3.3.3.1.1.02.00 | B59: =VLOOKUP(A59,#REF!,2,0) ->  | C59: 4 - Depreciação, Amortização e Exaustão | D59: 4.1 - Depreciação do Período
A60: 4.2 - Amortização do Período | C60: 4 - Depreciação, Amortização e Exaustão | D60: 4.2 - Amortização do Período
A61: 3.3.3.2.1.01.00 | C61: 4 - Depreciação, Amortização e Exaustão | D61: 4.2 - Amortização do Período
A62: 3.3.3.2.1.02.00 | B62: =VLOOKUP(A62,#REF!,2,0) ->  | C62: 4 - Depreciação, Amortização e Exaustão | D62: 4.2 - Amortização do Período
A63: 5 - Valor Adicionado Líquido (3-4) | C63: 5 - Valor Adicionado Líquido (3-4) | D63: 5 - Valor Adicionado Líquido (3-4)
A64: 6 - Valor Adicionado Recebido em Transferência | C64: 6 - Valor Adicionado Recebido em Transferência | D64: 6 - Valor Adicionado Recebido em Transferência
A65: 6.1 Repasses e Cotas Financeiras | C65: 6 - Valor Adicionado Recebido em Transferência | D65: 6.1 Repasses e Cotas Financeiras
A66: 3.5.1.1.2.02.00 | B66: =VLOOKUP(A66,#REF!,2,0) ->  | C66: 6 - Valor Adicionado Recebido em Transferência | D66: 6.1 Repasses e Cotas Financeiras
A67: 3.5.1.1.2.03.00 | B67: =VLOOKUP(A67,#REF!,2,0) ->  | C67: 6 - Valor Adicionado Recebido em Transferência | D67: 6.1 Repasses e Cotas Financeiras
A68: 3.5.1.1.2.08.02 | B68: =VLOOKUP(A68,#REF!,2,0) ->  | C68: 6 - Valor Adicionado Recebido em Transferência | D68: 6.1 Repasses e Cotas Financeiras
A69: 3.5.1.2.2.01.00 | B69: =VLOOKUP(A69,#REF!,2,0) ->  | C69: 6 - Valor Adicionado Recebido em Transferência | D69: 6.1 Repasses e Cotas Financeiras
A70: 3.5.1.2.2.02.00 | B70: =VLOOKUP(A70,#REF!,2,0) ->  | C70: 6 - Valor Adicionado Recebido em Transferência | D70: 6.1 Repasses e Cotas Financeiras
A71: 3.5.6.0.1.04.00 | B71: =VLOOKUP(A71,#REF!,2,0) ->  | C71: 6 - Valor Adicionado Recebido em Transferência | D71: 6.1 Repasses e Cotas Financeiras
A72: 3.5.9.0.2.01.00 | B72: =VLOOKUP(A72,#REF!,2,0) ->  | C72: 6 - Valor Adicionado Recebido em Transferência | D72: 6.1 Repasses e Cotas Financeiras
A73: 3.5.9.0.5.01.00 | B73: =VLOOKUP(A73,#REF!,2,0) ->  | C73: 6 - Valor Adicionado Recebido em Transferência | D73: 6.1 Repasses e Cotas Financeiras
A74: 3.4.3.9.2.01.01 | B74: =VLOOKUP(A74,#REF!,2,0) ->  | C74: 6 - Valor Adicionado Recebido em Transferência | D74: 6.1 Repasses e Cotas Financeiras
A75: 3.5.9.0.1.01.00 | B75: =VLOOKUP(A75,#REF!,2,0) ->  | C75: 6 - Valor Adicionado Recebido em Transferência | D75: 6.1 Repasses e Cotas Financeiras
A76: 4.3.3.1.2.01.00 | B76: =VLOOKUP(A76,#REF!,2,0) ->  | C76: 6 - Valor Adicionado Recebido em Transferência | D76: 6.1 Repasses e Cotas Financeiras
A77: 4.3.3.1.5.01.00 | B77: =VLOOKUP(A77,#REF!,2,0) ->  | C77: 6 - Valor Adicionado Recebido em Transferência | D77: 6.1 Repasses e Cotas Financeiras
A78: 4.3.3.9.1.01.00 | B78: =VLOOKUP(A78,#REF!,2,0) ->  | C78: 6 - Valor Adicionado Recebido em Transferência | D78: 6.1 Repasses e Cotas Financeiras
A79: 4.3.3.9.5.01.00 | B79: =VLOOKUP(A79,#REF!,2,0) ->  | C79: 6 - Valor Adicionado Recebido em Transferência | D79: 6.1 Repasses e Cotas Financeiras
A80: 4.3.3.9.1.99.00 | B80: =VLOOKUP(A80,#REF!,2,0) ->  | C80: 6 - Valor Adicionado Recebido em Transferência | D80: 6.1 Repasses e Cotas Financeiras
A81: 4.5.1.1.2.02.00 | B81: =VLOOKUP(A81,#REF!,2,0) ->  | C81: 6 - Valor Adicionado Recebido em Transferência | D81: 6.1 Repasses e Cotas Financeiras
A82: 4.5.1.1.2.03.00 | B82: =VLOOKUP(A82,#REF!,2,0) ->  | C82: 6 - Valor Adicionado Recebido em Transferência | D82: 6.1 Repasses e Cotas Financeiras
A83: 4.5.1.2.2.01.00 | B83: =VLOOKUP(A83,#REF!,2,0) ->  | C83: 6 - Valor Adicionado Recebido em Transferência | D83: 6.1 Repasses e Cotas Financeiras
A84: 4.5.1.2.2.02.00 | B84: =VLOOKUP(A84,#REF!,2,0) ->  | C84: 6 - Valor Adicionado Recebido em Transferência | D84: 6.1 Repasses e Cotas Financeiras
A85: 4.5.9.0.1.01.00 | B85: =VLOOKUP(A85,#REF!,2,0) ->  | C85: 6 - Valor Adicionado Recebido em Transferência | D85: 6.1 Repasses e Cotas Financeiras
A86: 4.5.9.0.2.01.00 | B86: =VLOOKUP(A86,#REF!,2,0) ->  | C86: 6 - Valor Adicionado Recebido em Transferência | D86: 6.1 Repasses e Cotas Financeiras
A87: 4.4.5.2.1.01.00 | B87: =VLOOKUP(A87,#REF!,2,0) ->  | C87: 6 - Valor Adicionado Recebido em Transferência | D87: 6.1 Repasses e Cotas Financeiras
A88: 6.2 Receitas Financeiras | C88: 6 - Valor Adicionado Recebido em Transferência | D88: 6.2 Receitas Financeiras
A89: Receitas Financeiras | C89: 6 - Valor Adicionado Recebido em Transferência | D89: 6.2 Receitas Financeiras
A90: 6.3 Outras | C90: 6 - Valor Adicionado Recebido em Transferência | D90: 6.3 Outras
A91: 4.3.3.1.1.01.00 | B91: =VLOOKUP(A91,#REF!,2,0) ->  | C91: 6 - Valor Adicionado Recebido em Transferência | D91: 6.3 Outras
A92: 4.5.1.2.2.03.00 | B92: =VLOOKUP(A92,#REF!,2,0) ->  | C92: 6 - Valor Adicionado Recebido em Transferência | D92: 6.3 Outras
A93: 4.4.2.9.1.01.00 | B93: =VLOOKUP(A93,#REF!,2,0) ->  | C93: 6 - Valor Adicionado Recebido em Transferência | D93: 6.3 Outras
A94: 4.6.3.1.1.01.00 | B94: GANHOS COM INCORPORACAO DE ATIVOS | C94: 6 - Valor Adicionado Recebido em Transferência | D94: 6.3 Outras
A95: 4.6.3.9.1.01.00 | B95: =VLOOKUP(A95,#REF!,2,0) ->  | C95: 6 - Valor Adicionado Recebido em Transferência | D95: 6.3 Outras
A96: 4.6.3.9.2.01.00 | B96: =VLOOKUP(A96,#REF!,2,0) ->  | C96: 6 - Valor Adicionado Recebido em Transferência | D96: 6.3 Outras
A97: 4.6.4.0.1.01.00 | B97: =VLOOKUP(A97,#REF!,2,0) ->  | C97: 6 - Valor Adicionado Recebido em Transferência | D97: 6.3 Outras
A98: 4.6.4.0.2.01.00 | B98: =VLOOKUP(A98,#REF!,2,0) ->  | C98: 6 - Valor Adicionado Recebido em Transferência | D98: 6.3 Outras
A99: 4.9.9.6.1.02.00 | B99: =VLOOKUP(A99,#REF!,2,0) ->  | C99: 6 - Valor Adicionado Recebido em Transferência | D99: 6.3 Outras
A100: 4.9.9.9.1.01.00 | B100: =VLOOKUP(A100,#REF!,2,0) ->  | C100: 6 - Valor Adicionado Recebido em Transferência | D100: 6.3 Outras
A101: 4.9.7.1.1.01.00 | B101: =VLOOKUP(A101,#REF!,2,0) ->  | C101: 6 - Valor Adicionado Recebido em Transferência | D101: 6.3 Outras
A102: 4.9.9.5.1.01.00 | B102: =VLOOKUP(A102,#REF!,2,0) ->  | C102: 6 - Valor Adicionado Recebido em Transferência | D102: 6.3 Outras
A103: 3.5.3.1.1.01.00 | B103: =VLOOKUP(A103,#REF!,2,0) ->  | C103: 6 - Valor Adicionado Recebido em Transferência | D103: 6.3 Outras
A104: 3.5.2.3.1.01.00 | B104: =VLOOKUP(A104,#REF!,2,0) ->  | C104: 6 - Valor Adicionado Recebido em Transferência | D104: 6.3 Outras
A105: 3.5.1.2.2.03.00 | B105: =VLOOKUP(A105,#REF!,2,0) ->  | C105: 6 - Valor Adicionado Recebido em Transferência | D105: 6.3 Outras
A106: 3.5.1.2.2.05.00 | B106: =VLOOKUP(A106,#REF!,2,0) ->  | C106: 6 - Valor Adicionado Recebido em Transferência | D106: 6.3 Outras
A107: 3.6.5.0.1.01.00 | B107: INCORPORACAO DE PASSIVOS | C107: 6 - Valor Adicionado Recebido em Transferência | D107: 6.3 Outras
A108: 3.6.5.0.2.01.00 | B108: =VLOOKUP(A108,#REF!,2,0) ->  | C108: 6 - Valor Adicionado Recebido em Transferência | D108: 6.3 Outras
A109: 3.5.9.0.4.01.00 | B109: =VLOOKUP(A109,#REF!,2,0) ->  | C109: 6 - Valor Adicionado Recebido em Transferência | D109: 6.3 Outras
A110: 3.6.3.1.1.01.00 | B110: =VLOOKUP(A110,#REF!,2,0) ->  | C110: 6 - Valor Adicionado Recebido em Transferência | D110: 6.3 Outras
A111: 7 - Valor Adicionado Total a Distribuir (5+6) | C111: 7 - Valor Adicionado Total a Distribuir (5+6) | D111: 7 - Valor Adicionado Total a Distribuir (5+6)
A112: 8 - Distribuição do Valor Adicionado | C112: 8 - Distribuição do Valor Adicionado | D112: 8 - Distribuição do Valor Adicionado
A113: 8.1 - Remuneração do Trabalho | C113: 8 - Distribuição do Valor Adicionado | D113: 8.1 - Remuneração do Trabalho
A114: 8.1.1 - Pessoal e Diárias | C114: 8 - Distribuição do Valor Adicionado | D114: 8.1.1 - Pessoal e Diárias
A115: 3.1.1.1.1.01.00 | C115: 8 - Distribuição do Valor Adicionado | D115: 8.1.1 - Pessoal e Diárias
A116: 3.1.1.1.1.03.00 | B116: =VLOOKUP(A116,#REF!,2,0) ->  | C116: 8 - Distribuição do Valor Adicionado | D116: 8.1.1 - Pessoal e Diárias
A117: 3.1.1.1.1.04.00 | B117: =VLOOKUP(A117,#REF!,2,0) ->  | C117: 8 - Distribuição do Valor Adicionado | D117: 8.1.1 - Pessoal e Diárias
A118: 3.1.1.1.1.09.00 | B118: =VLOOKUP(A118,#REF!,2,0) ->  | C118: 8 - Distribuição do Valor Adicionado | D118: 8.1.1 - Pessoal e Diárias
A119: 3.3.2.1.1.01.00 | B119: =VLOOKUP(A119,#REF!,2,0) ->  | C119: 8 - Distribuição do Valor Adicionado | D119: 8.1.1 - Pessoal e Diárias
A120: 3.1.1.1.1.05.00 | B120: =VLOOKUP(A120,#REF!,2,0) ->  | C120: 8 - Distribuição do Valor Adicionado | D120: 8.1.1 - Pessoal e Diárias
A121: 3.1.1.2.1.01.00 | B121: SERVICOS DE CONFECCOES - PJ | C121: 8 - Distribuição do Valor Adicionado | D121: 8.1.1 - Pessoal e Diárias
A122: 3.1.1.2.1.02.00 | B122: =VLOOKUP(A122,#REF!,2,0) ->  | C122: 8 - Distribuição do Valor Adicionado | D122: 8.1.1 - Pessoal e Diárias
A123: 3.1.1.2.1.03.00 | B123: =VLOOKUP(A123,#REF!,2,0) ->  | C123: 8 - Distribuição do Valor Adicionado | D123: 8.1.1 - Pessoal e Diárias
A124: 3.1.1.2.1.04.00 | B124: =VLOOKUP(A124,#REF!,2,0) ->  | C124: 8 - Distribuição do Valor Adicionado | D124: 8.1.1 - Pessoal e Diárias
A125: 3.1.1.2.1.05.00 | B125: =VLOOKUP(A125,#REF!,2,0) ->  | C125: 8 - Distribuição do Valor Adicionado | D125: 8.1.1 - Pessoal e Diárias
A126: 3.1.1.1.1.06.00 | B126: =VLOOKUP(A126,#REF!,2,0) ->  | C126: 8 - Distribuição do Valor Adicionado | D126: 8.1.1 - Pessoal e Diárias
A127: 3.1.1.2.1.06.00 | B127: =VLOOKUP(A127,#REF!,2,0) ->  | C127: 8 - Distribuição do Valor Adicionado | D127: 8.1.1 - Pessoal e Diárias
A128: 3.1.1.2.1.09.00 | B128: =VLOOKUP(A128,#REF!,2,0) ->  | C128: 8 - Distribuição do Valor Adicionado | D128: 8.1.1 - Pessoal e Diárias
A129: 3.1.3.1.1.04.00 | B129: =VLOOKUP(A129,#REF!,2,0) ->  | C129: 8 - Distribuição do Valor Adicionado | D129: 8.1.1 - Pessoal e Diárias
A130: 3.1.3.2.1.02.00 | B130: =VLOOKUP(A130,#REF!,2,0) ->  | C130: 8 - Distribuição do Valor Adicionado | D130: 8.1.1 - Pessoal e Diárias
A131: 3.1.3.2.1.04.00 | B131: =VLOOKUP(A131,#REF!,2,0) ->  | C131: 8 - Distribuição do Valor Adicionado | D131: 8.1.1 - Pessoal e Diárias
A132: 3.1.3.2.1.05.00 | B132: =VLOOKUP(A132,#REF!,2,0) ->  | C132: 8 - Distribuição do Valor Adicionado | D132: 8.1.1 - Pessoal e Diárias
A133: 3.1.3.2.1.06.00 | B133: =VLOOKUP(A133,#REF!,2,0) ->  | C133: 8 - Distribuição do Valor Adicionado | D133: 8.1.1 - Pessoal e Diárias
A134: 3.1.3.2.1.07.00 | B134: =VLOOKUP(A134,#REF!,2,0) ->  | C134: 8 - Distribuição do Valor Adicionado | D134: 8.1.1 - Pessoal e Diárias
A135: 3.1.9.1.1.01.00 | B135: =VLOOKUP(A135,#REF!,2,0) ->  | C135: 8 - Distribuição do Valor Adicionado | D135: 8.1.1 - Pessoal e Diárias
A136: 3.1.2.2.2.09.00 | B136: =VLOOKUP(A136,#REF!,2,0) ->  | C136: 8 - Distribuição do Valor Adicionado | D136: 8.1.1 - Pessoal e Diárias
A137: 3.1.9.2.1.01.00 | B137: =VLOOKUP(A137,#REF!,2,0) ->  | C137: 8 - Distribuição do Valor Adicionado | D137: 8.1.1 - Pessoal e Diárias
A138: 3.1.9.2.2.01.00 | B138: =VLOOKUP(A138,#REF!,2,0) ->  | C138: 8 - Distribuição do Valor Adicionado | D138: 8.1.1 - Pessoal e Diárias
A139: 3.1.9.2.4.01.00 | B139: =VLOOKUP(A139,#REF!,2,0) ->  | C139: 8 - Distribuição do Valor Adicionado | D139: 8.1.1 - Pessoal e Diárias
A140: 3.1.9.2.5.01.00 | B140: =VLOOKUP(A140,#REF!,2,0) ->  | C140: 8 - Distribuição do Valor Adicionado | D140: 8.1.1 - Pessoal e Diárias
A141: 3.9.4.1.1.01.00 | B141: =VLOOKUP(A141,#REF!,2,0) ->  | C141: 8 - Distribuição do Valor Adicionado | D141: 8.1.1 - Pessoal e Diárias
A142: 3.9.7.1.1.01.00 | B142: =VLOOKUP(A142,#REF!,2,0) ->  | C142: 8 - Distribuição do Valor Adicionado | D142: 8.1.1 - Pessoal e Diárias
A143: 3.9.7.4.1.01.00 | B143: =VLOOKUP(A143,#REF!,2,0) ->  | C143: 8 - Distribuição do Valor Adicionado | D143: 8.1.1 - Pessoal e Diárias
A144: 3.9.9.6.1.01.00 | B144: =VLOOKUP(A144,#REF!,2,0) ->  | C144: 8 - Distribuição do Valor Adicionado | D144: 8.1.1 - Pessoal e Diárias
A145: 3.9.9.6.2.02.00 | B145: =VLOOKUP(A145,#REF!,2,0) ->  | C145: 8 - Distribuição do Valor Adicionado | D145: 8.1.1 - Pessoal e Diárias
A146: 3.9.9.6.4.02.00 | B146: =VLOOKUP(A146,#REF!,2,0) ->  | C146: 8 - Distribuição do Valor Adicionado | D146: 8.1.1 - Pessoal e Diárias
A147: 3.9.4.2.1.01.00 | B147: =VLOOKUP(A147,#REF!,2,0) ->  | C147: 8 - Distribuição do Valor Adicionado | D147: 8.1.1 - Pessoal e Diárias
A148: 3.9.9.6.1.02.00 | B148: =VLOOKUP(A148,#REF!,2,0) ->  | C148: 8 - Distribuição do Valor Adicionado | D148: 8.1.1 - Pessoal e Diárias
A149: 8.1.2 - Encargos | C149: 8 - Distribuição do Valor Adicionado | D149: 8.1.2 - Encargos
A150: 3.1.2.1.2.01.00 | B150: =VLOOKUP(A150,#REF!,2,0) ->  | C150: 8 - Distribuição do Valor Adicionado | D150: 8.1.2 - Encargos
A151: 3.1.2.2.2.01.00 | B151: =VLOOKUP(A151,#REF!,2,0) ->  | C151: 8 - Distribuição do Valor Adicionado | D151: 8.1.2 - Encargos
A152: 3.1.2.3.1.01.00 | B152: =VLOOKUP(A152,#REF!,2,0) ->  | C152: 8 - Distribuição do Valor Adicionado | D152: 8.1.2 - Encargos
A153: 3.1.3.2.1.01.00 | B153: =VLOOKUP(A153,#REF!,2,0) ->  | C153: 8 - Distribuição do Valor Adicionado | D153: 8.1.2 - Encargos
A154: 8.2 - Remuneração do Governo | C154: 8 - Distribuição do Valor Adicionado | D154: 8.2 - Remuneração do Governo
A155: 8.2.1 - Impostos, Taxas, Contribuições, Multas e Juros | C155: 8 - Distribuição do Valor Adicionado | D155: 8.2.1 - Impostos, Taxas, Contribuições, Multas e Juros
A156: 3.4.2.4.1.01.00 | B156: =VLOOKUP(A156,#REF!,2,0) ->  | C156: 8 - Distribuição do Valor Adicionado | D156: 8.2.1 - Impostos, Taxas, Contribuições, Multas e Juros
A157: 3.4.2.4.2.01.00 | B157: =VLOOKUP(A157,#REF!,2,0) ->  | C157: 8 - Distribuição do Valor Adicionado | D157: 8.2.1 - Impostos, Taxas, Contribuições, Multas e Juros
A158: 3.4.2.4.2.03.00 | B158: =VLOOKUP(A158,#REF!,2,0) ->  | C158: 8 - Distribuição do Valor Adicionado | D158: 8.2.1 - Impostos, Taxas, Contribuições, Multas e Juros
A159: 3.4.2.4.1.02.00 | B159: =VLOOKUP(A159,#REF!,2,0) ->  | C159: 8 - Distribuição do Valor Adicionado | D159: 8.2.1 - Impostos, Taxas, Contribuições, Multas e Juros
A160: 3.4.2.4.1.03.00 | B160: =VLOOKUP(A160,#REF!,2,0) ->  | C160: 8 - Distribuição do Valor Adicionado | D160: 8.2.1 - Impostos, Taxas, Contribuições, Multas e Juros
A161: 3.4.2.3.1.01.00 | B161: =VLOOKUP(A161,#REF!,2,0) ->  | C161: 8 - Distribuição do Valor Adicionado | D161: 8.2.1 - Impostos, Taxas, Contribuições, Multas e Juros
A162: 3.4.2.3.1.02.00 | B162: =VLOOKUP(A162,#REF!,2,0) ->  | C162: 8 - Distribuição do Valor Adicionado | D162: 8.2.1 - Impostos, Taxas, Contribuições, Multas e Juros
A163: 3.4.2.3.1.03.00 | B163: =VLOOKUP(A163,#REF!,2,0) ->  | C163: 8 - Distribuição do Valor Adicionado | D163: 8.2.1 - Impostos, Taxas, Contribuições, Multas e Juros
A164: 3.4.2.4.2.02.00 | B164: =VLOOKUP(A164,#REF!,2,0) ->  | C164: 8 - Distribuição do Valor Adicionado | D164: 8.2.1 - Impostos, Taxas, Contribuições, Multas e Juros
A165: 3.4.2.4.4.02.00 | B165: =VLOOKUP(A165,#REF!,2,0) ->  | C165: 8 - Distribuição do Valor Adicionado | D165: 8.2.1 - Impostos, Taxas, Contribuições, Multas e Juros
A166: 3.4.2.4.4.03.00 | B166: =VLOOKUP(A166,#REF!,2,0) ->  | C166: 8 - Distribuição do Valor Adicionado | D166: 8.2.1 - Impostos, Taxas, Contribuições, Multas e Juros
A167: 3.4.2.4.5.01.00 | B167: MULTAS DEDUTIVEIS | C167: 8 - Distribuição do Valor Adicionado | D167: 8.2.1 - Impostos, Taxas, Contribuições, Multas e Juros
A168: 3.4.2.4.5.02.00 | B168: MULTAS INDEDUTIVEIS | C168: 8 - Distribuição do Valor Adicionado | D168: 8.2.1 - Impostos, Taxas, Contribuições, Multas e Juros
A169: 3.4.2.4.5.03.00 | B169: =VLOOKUP(A169,#REF!,2,0) ->  | C169: 8 - Distribuição do Valor Adicionado | D169: 8.2.1 - Impostos, Taxas, Contribuições, Multas e Juros
A170: 3.4.3.9.1.01.01 | B170: =VLOOKUP(A170,#REF!,2,0) ->  | C170: 8 - Distribuição do Valor Adicionado | D170: 8.2.1 - Impostos, Taxas, Contribuições, Multas e Juros
A171: 3.9.9.5.1.01.00 | B171: MULTAS INDEDUTIVEIS | C171: 8 - Distribuição do Valor Adicionado | D171: 8.2.1 - Impostos, Taxas, Contribuições, Multas e Juros
A172: 3.9.9.5.4.01.00 | B172: ENCARGOS FINANCEIROS DEDUTIVEIS | C172: 8 - Distribuição do Valor Adicionado | D172: 8.2.1 - Impostos, Taxas, Contribuições, Multas e Juros
A173: 3.9.9.5.2.01.00 | B173: =VLOOKUP(A173,#REF!,2,0) ->  | C173: 8 - Distribuição do Valor Adicionado | D173: 8.2.1 - Impostos, Taxas, Contribuições, Multas e Juros
A174: 3.4.3.9.2.01.01 | B174: =VLOOKUP(A174,#REF!,2,0) ->  | C174: 8 - Distribuição do Valor Adicionado | D174: 8.2.1 - Impostos, Taxas, Contribuições, Multas e Juros
A175: 3.7.1.1.1.02.00 | B175: =VLOOKUP(A175,#REF!,2,0) ->  | C175: 8 - Distribuição do Valor Adicionado | D175: 8.2.1 - Impostos, Taxas, Contribuições, Multas e Juros
A176: 3.7.1.1.5.02.00 | B176: =VLOOKUP(A176,#REF!,2,0) ->  | C176: 8 - Distribuição do Valor Adicionado | D176: 8.2.1 - Impostos, Taxas, Contribuições, Multas e Juros
A177: 3.7.1.2.1.01.00 | B177: =VLOOKUP(A177,#REF!,2,0) ->  | C177: 8 - Distribuição do Valor Adicionado | D177: 8.2.1 - Impostos, Taxas, Contribuições, Multas e Juros
A178: 3.7.1.2.2.01.00 | B178: =VLOOKUP(A178,#REF!,2,0) ->  | C178: 8 - Distribuição do Valor Adicionado | D178: 8.2.1 - Impostos, Taxas, Contribuições, Multas e Juros
A179: 3.7.1.2.4.01.00 | B179: =VLOOKUP(A179,#REF!,2,0) ->  | C179: 8 - Distribuição do Valor Adicionado | D179: 8.2.1 - Impostos, Taxas, Contribuições, Multas e Juros
A180: 3.7.1.2.5.01.00 | B180: =VLOOKUP(A180,#REF!,2,0) ->  | C180: 8 - Distribuição do Valor Adicionado | D180: 8.2.1 - Impostos, Taxas, Contribuições, Multas e Juros
A181: 3.7.2.1.2.04.00 | B181: =VLOOKUP(A181,#REF!,2,0) ->  | C181: 8 - Distribuição do Valor Adicionado | D181: 8.2.1 - Impostos, Taxas, Contribuições, Multas e Juros
A182: 3.7.2.3.1.01.00 | B182: =VLOOKUP(A182,#REF!,2,0) ->  | C182: 8 - Distribuição do Valor Adicionado | D182: 8.2.1 - Impostos, Taxas, Contribuições, Multas e Juros
A183: 3.7.2.3.5.01.00 | B183: =VLOOKUP(A183,#REF!,2,0) ->  | C183: 8 - Distribuição do Valor Adicionado | D183: 8.2.1 - Impostos, Taxas, Contribuições, Multas e Juros
A184: 8.3 - Remuneração do Capital de Terceiros | C184: 8 - Distribuição do Valor Adicionado | D184: 8.3 - Remuneração do Capital de Terceiros
A185: 8.3.1 - Aluguéis | C185: 8 - Distribuição do Valor Adicionado | D185: 8.3.1 - Aluguéis
A186: 3.3.2.3.1.09.00 | B186: =VLOOKUP(A186,#REF!,2,0) ->  | C186: 8 - Distribuição do Valor Adicionado | D186: 8.3.1 - Aluguéis
A187: 3.3.2.3.4.09.00 | B187: =VLOOKUP(A187,#REF!,2,0) ->  | C187: 8 - Distribuição do Valor Adicionado | D187: 8.3.1 - Aluguéis
A188: 3.3.2.2.1.08.00 | B188: =VLOOKUP(A188,#REF!,2,0) ->  | C188: 8 - Distribuição do Valor Adicionado | D188: 8.3.1 - Aluguéis
A189: 3.3.2.3.5.09.00 | B189: =VLOOKUP(A189,#REF!,2,0) ->  | C189: 8 - Distribuição do Valor Adicionado | D189: 8.3.1 - Aluguéis
A190: 3.3.2.3.2.09.00 | B190: =VLOOKUP(A190,#REF!,2,0) ->  | C190: 8 - Distribuição do Valor Adicionado | D190: 8.3.1 - Aluguéis
A191: 8.4 - Remuneração de Capital Próprio | C191: 8 - Distribuição do Valor Adicionado | D191: 8.4 - Remuneração de Capital Próprio
A192: 8.4.1 Resultado do Exercício | C192: 8 - Distribuição do Valor Adicionado | D192: 8.4.1 Resultado do Exercício
